Workbook

Sheet TR129
A1: Indication of FFR results for Tender Round 129, accepted tenders will be officially notified via an issued acceptance letter.
A2: Tender Ref | D2: Company Name | E2: Tendered Unit (BMU/Unit ID) | F2: TO connection / DNO connection | G2: Generation Type | H2: Start Date | I2: End Date | J2: Tendered Period (dd.mm.yy - dd.mm.yy) | K2: Applicable FFR Capability Data Table | L2: Tendered Frames per Service Day | U2: Tendered Prices*** | X2: BMUs Only - Applicable Balancing Service (i.e. ABSVD Imbalance) YES/NO | Y2: Dynamic Providers Only | AC2: Dynamic Providers only | AJ2: Please indicate as per detail change provision if you are adding volume | AK2: Please state the accepted tender that you are stacking onto | AL2: Please state if this is an all or nothing bid. Clearly reference what lines are included in each all or nothing bid | AM2: Please indicate if this is a mutually exclusive tender | AN2: Non-Dynamic Providers | AP2: Comments
L3: Working Days (Mon-Fri) | O3: Saturdays | R3: Sundays/Bank Holidays | U3: Availability Fee (£/h) | V3: Nomination Fee (£/h) | W3: Window Initiation Fee (£/window) | Y3: Maximum Part Load Point (MW) | Z3: Minimum Part Load Point (MW) | AA3: Minimum MEL (MW) | AB3: Maximum SEL (MW) | AN3: Volume of Response Tendered
B4: Status | C4: Rejection Code | L4: From | M4: To | N4: Duration (h) | O4: From | P4: To | Q4: Duration (h) | R4: From | S4: To | T4: Duration (h) | AC4: Primary Response (max.) @ 0.2Hz (MW) | AD4: Primary Response (max.) @ 0.5Hz (MW) | AE4: Primary Response (max.) @ 0.8Hz (MW) | AF4: Secondary Response (max.) @ 0.2/0.2Hz (MW) | AG4: Secondary Response (max.) @ 0.5/0.5Hz (MW) | AH4: High Frequency Response (max.) @ 0.2Hz (MW) | AI4: High Frequency Response (max.) @ 0.5Hz (MW) | AN4: Automatic Response Energy Deliverable by 10s (MW) | AO4: Automatic Response Energy Deliverable by 30s (MW)
A5: 129 | D5: Example Company | E5: Ex-FFR-1 | F5: TO connection | G5: Wind | H5: ='[1]Drop down boxes'!D3 -> 2020-10-01 | I5: ='[1]Drop down boxes'!E2 -> 2020-10-31 | J5: =IFERROR(TEXT(H5,"DD.MM.YY")&" - "&TEXT(I5,"DD.MM.YY")&" ("&DATEDIF(H5,I5+1,"m")&" months)","Tender End Date is Before Start Date") -> 01.10.20 - 31.10.20 (1 months) | K5: As per FFR framework agreement | L5: 2300 | M5: 700 | N5: =IF(L5>M5, (2400-L5+M5)/100, IF(AND(L5="",M5="",L5=M5), "", IF(L5=M5,24,(M5-L5)/100))) -> 8 | O5: 2300 | P5: 700 | Q5: =IF(O5>P5, (2400-O5+P5)/100, IF(AND(O5="",P5="",O5=P5), "", IF(O5=P5,24,(P5-O5)/100))) -> 8 | R5: 2300 | S5: 700 | T5: =IF(R5>S5, (2400-R5+S5)/100, IF(AND(R5="",S5="",R5=S5), "", IF(R5=S5,24,(S5-R5)/100))) -> 8 | U5: 100 | V5: 600 | W5: - | X5: - | Y5: - | Z5: - | AA5: - | AB5: - | AC5: - | AD5: - | AE5: - | AF5: - | AG5: - | AH5: - | AI5: - | AJ5: - | AK5: - | AN5: - | AO5: - | AP5: -
A6: 129 | D6: Example Company | E6: =E5 -> Ex-FFR-1 | F6: DNO connection | G6: Gas | H6: =H5 -> 2020-10-01 | I6: =I5 -> 2020-10-31 | J6: =IFERROR(TEXT(H6,"DD.MM.YY")&" - "&TEXT(I6,"DD.MM.YY")&" ("&DATEDIF(H6,I6+1,"m")&" months)","Tender End Date is Before Start Date") -> 01.10.20 - 31.10.20 (1 months) | K6: As per FFR framework agreement | L6: 700 | M6: 2300 | N6: 16 | O6: 700 | P6: 2300 | Q6: 16 | R6: 700 | S6: 2300 | T6: 16 | U6: 600 | V6: 100 | W6: - | X6: - | Y6: - | Z6: - | AA6: - | AB6: - | AC6: - | AD6: - | AE6: - | AF6: - | AG6: - | AH6: - | AI6: - | AJ6: - | AK6: - | AN6: - | AO6: - | AP6: -
A7: =A5+0.001 -> 129.001 | B7: Accepted | C7: NA | D7: GridBeyond Limited | E7: GBND-1 | F7: DNO connection | G7: DSF: Load response | H7: 2020-09-30 | I7: 2020-10-31 | J7: 30.09.20 - 31.10.20 (1 months) | K7: As per FFR framework agreement | L7: 2300 | M7: 700 | N7: 8 | O7: 2300 | P7: 700 | Q7: 8 | R7: 2300 | S7: 700 | T7: 8 | U7: 14.94 | AC7: 1.2 | AD7: 3 | AE7: 3 | AF7: 1.2 | AG7: 3 | AH7: 1.2 | AI7: 3
A8: =A7+0.001 -> 129.002 | B8: Accepted | C8: NA | D8: GridBeyond Limited | E8: GBND-1 | F8: DNO connection | G8: DSF: Load response | H8: 2020-10-01 | I8: 2020-10-31 | J8: 01.10.20 - 31.10.20 (1 months) | K8: As per FFR framework agreement | L8: 700 | M8: 1500 | N8: 8 | O8: 700 | P8: 1500 | Q8: 8 | R8: 700 | S8: 1500 | T8: 8 | U8: 16.74 | AC8: 1.2 | AD8: 3 | AE8: 3 | AF8: 1.2 | AG8: 3 | AH8: 1.2 | AI8: 3
A9: 129.003 | B9: Accepted | C9: NA | D9: GridBeyond Limited | E9: GBND-1 | F9: DNO connection | G9: DSF: Load response | H9: 2020-10-01 | I9: 2020-10-31 | J9: 01.10.20 - 31.10.20 (1 months) | K9: As per FFR framework agreement | L9: 1500 | M9: 2300 | N9: 8 | O9: 1500 | P9: 2300 | Q9: 8 | R9: 1500 | S9: 2300 | T9: 8 | U9: 19.26 | AC9: 1.2 | AD9: 3 | AE9: 3 | AF9: 1.2 | AG9: 3 | AH9: 1.2 | AI9: 3
A10: 129.004 | B10: Accepted | C10: NA | D10: GridBeyond Limited | E10: GBND-2 | F10: DNO connection | G10: DSF: Load response | H10: 2020-09-30 | I10: 2020-10-31 | J10: 30.09.20 - 31.10.20 (1 months) | K10: As per FFR framework agreement | L10: 2300 | M10: 700 | N10: 8 | U10: 58.68 | AC10: 4.8 | AD10: 12 | AE10: 12 | AF10: 4.8 | AG10: 12 | AH10: 4.8 | AI10: 12 | AL10: A
A11: 129.005 | B11: Accepted | C11: NA | D11: GridBeyond Limited | E11: GBND-2 | F11: DNO connection | G11: DSF: Load response | H11: 2020-10-01 | I11: 2020-10-31 | J11: 01.10.20 - 31.10.20 (1 months) | K11: As per FFR framework agreement | L11: 700 | M11: 1500 | N11: 8 | U11: 65.88 | AC11: 4.8 | AD11: 12 | AE11: 12 | AF11: 4.8 | AG11: 12 | AH11: 4.8 | AI11: 12 | AL11: B
A12: 129.006 | B12: Accepted | C12: NA | D12: GridBeyond Limited | E12: GBND-2 | F12: DNO connection | G12: DSF: Load response | H12: 2020-10-01 | I12: 2020-10-31 | J12: 01.10.20 - 31.10.20 (1 months) | K12: As per FFR framework agreement | L12: 1500 | M12: 2300 | N12: 8 | U12: 56.97 | AC12: 3.6 | AD12: 9 | AE12: 9 | AF12: 3.6 | AG12: 9 | AH12: 3.6 | AI12: 9 | AL12: C
A13: 129.007 | B13: Accepted | C13: NA | D13: GridBeyond Limited | E13: GBND-2 | F13: DNO connection | G13: DSF: Load response | H13: 2020-09-30 | I13: 2020-10-31 | J13: 30.09.20 - 31.10.20 (1 months) | K13: As per FFR framework agreement | O13: 2300 | P13: 700 | Q13: 8 | R13: 2300 | S13: 700 | T13: 8 | U13: 34.23 | AC13: 2.8 | AD13: 7 | AE13: 7 | AF13: 2.8 | AG13: 7 | AH13: 2.8 | AI13: 7 | AL13: A
A14: 129.008 | B14: Accepted | C14: NA | D14: GridBeyond Limited | E14: GBND-2 | F14: DNO connection | G14: DSF: Load response | H14: 2020-10-01 | I14: 2020-10-31 | J14: 01.10.20 - 31.10.20 (1 months) | K14: As per FFR framework agreement | O14: 700 | P14: 1500 | Q14: 8 | R14: 700 | S14: 1500 | T14: 8 | U14: 38.43 | AC14: 2.8 | AD14: 7 | AE14: 7 | AF14: 2.8 | AG14: 7 | AH14: 2.8 | AI14: 7 | AL14: B
A15: 129.009 | B15: Accepted | C15: NA | D15: GridBeyond Limited | E15: GBND-2 | F15: DNO connection | G15: DSF: Load response | H15: 2020-10-01 | I15: 2020-10-31 | J15: 01.10.20 - 31.10.20 (1 months) | K15: As per FFR framework agreement | O15: 1500 | P15: 2300 | Q15: 8 | R15: 1500 | S15: 2300 | T15: 8 | U15: 44.31 | AC15: 2.8 | AD15: 7 | AE15: 7 | AF15: 2.8 | AG15: 7 | AH15: 2.8 | AI15: 7 | AL15: C
A16: 129.01 | B16: Accepted | C16: NA | D16: Centrica Brigg Ltd | E16: ROOSB-1 | F16: DNO connection | G16: Battery | H16: 2020-09-30 | I16: 2020-10-31 | J16: 30.09.20 - 31.10.20 (1 months) | K16: As per FFR framework agreement | L16: 2300 | M16: 700 | N16: =IF(L16>M16, (2400-L16+M16)/100, IF(AND(L16="",M16="",L16=M16), "", IF(L16=M16,24,(M16-L16)/100))) -> 8 | O16: 2300 | P16: 700 | Q16: =IF(O16>P16, (2400-O16+P16)/100, IF(AND(O16="",P16="",O16=P16), "", IF(O16=P16,24,(P16-O16)/100))) -> 8 | R16: 2300 | S16: 700 | T16: =IF(R16>S16, (2400-R16+S16)/100, IF(AND(R16="",S16="",R16=S16), "", IF(R16=S16,24,(S16-R16)/100))) -> 8 | U16: 254.27 | V16: 0 | W16: 0 | X16: Yes | Y16: 2 | Z16: 0 | AA16: 47 | AB16: 2 | AC16: 18.8 | AD16: 47 | AE16: 47 | AF16: 18.8 | AG16: 47 | AH16: 18.8 | AI16: 47
A17: 129.011 | B17: Accepted | C17: NA | D17: Centrica Brigg Ltd | E17: ROOSB-1 | F17: DNO connection | G17: Battery | H17: 2020-10-01 | I17: 2020-10-31 | J17: 01.10.20 - 31.10.20 (1 months) | K17: As per FFR framework agreement | L17: 700 | M17: 1500 | N17: =IF(L17>M17, (2400-L17+M17)/100, IF(AND(L17="",M17="",L17=M17), "", IF(L17=M17,24,(M17-L17)/100))) -> 8 | O17: 700 | P17: 1500 | Q17: =IF(O17>P17, (2400-O17+P17)/100, IF(AND(O17="",P17="",O17=P17), "", IF(O17=P17,24,(P17-O17)/100))) -> 8 | R17: 700 | S17: 1500 | T17: =IF(R17>S17, (2400-R17+S17)/100, IF(AND(R17="",S17="",R17=S17), "", IF(R17=S17,24,(S17-R17)/100))) -> 8 | U17: 311.61 | V17: 0 | W17: 0 | X17: Yes | Y17: 2 | Z17: 0 | AA17: 47 | AB17: 2 | AC17: 18.8 | AD17: 47 | AE17: 47 | AF17: 18.8 | AG17: 47 | AH17: 18.8 | AI17: 47
A18: 129.012 | B18: Accepted | C18: NA | D18: Centrica Brigg Ltd | E18: ROOSB-1 | F18: DNO connection | G18: Battery | H18: 2020-10-01 | I18: 2020-10-31 | J18: 01.10.20 - 31.10.20 (1 months) | K18: As per FFR framework agreement | L18: 1500 | M18: 2300 | N18: 8 | O18: 1500 | P18: 2300 | Q18: 8 | R18: 1500 | S18: 2300 | T18: 8 | U18: 348.27 | V18: 0 | W18: 0 | X18: Yes | Y18: 2 | Z18: 0 | AA18: 47 | AB18: 2 | AC18: 18.8 | AD18: 47 | AE18: 47 | AF18: 18.8 | AG18: 47 | AH18: 18.8 | AI18: 47
A19: 129.013 | B19: Accepted | C19: NA | D19: REstore Flexpond UK Ltd | E19: REST-1 | F19: DNO connection | G19: Multiple Fuel Type | H19: 2020-09-30 | I19: 2020-10-31 | J19: 30.09.20 - 31.10.20 (1 months) | K19: As per FFR framework agreement | L19: 2300 | M19: 700 | N19: 8 | O19: 2300 | P19: 700 | Q19: 8 | R19: 2300 | S19: 700 | T19: 8 | U19: 27.05 | V19: 0 | W19: 0 | AC19: 2 | AD19: 5 | AE19: 5 | AF19: 2 | AG19: 5 | AH19: 2 | AI19: 5
A20: 129.014 | B20: Accepted | C20: NA | D20: REstore Flexpond UK Ltd | E20: REST-1 | F20: DNO connection | G20: Multiple Fuel Type | H20: 2020-10-01 | I20: 2020-10-31 | J20: 01.10.20 - 31.10.20 (1 months) | K20: As per FFR framework agreement | L20: 700 | M20: 1500 | N20: 8 | O20: 700 | P20: 1500 | Q20: 8 | R20: 700 | S20: 1500 | T20: 8 | U20: 33.15 | V20: 0 | W20: 0 | AC20: 2 | AD20: 5 | AE20: 5 | AF20: 2 | AG20: 5 | AH20: 2 | AI20: 5
A21: 129.015 | B21: Accepted | C21: NA | D21: REstore Flexpond UK Ltd | E21: REST-1 | F21: DNO connection | G21: Multiple Fuel Type | H21: 2020-10-01 | I21: 2020-10-31 | J21: 01.10.20 - 31.10.20 (1 months) | K21: As per FFR framework agreement | L21: 1500 | M21: 2300 | N21: 8 | O21: 1500 | P21: 2300 | Q21: 8 | R21: 1500 | S21: 2300 | T21: 8 | U21: 37.05 | V21: 0 | W21: 0 | AC21: 2 | AD21: 5 | AE21: 5 | AF21: 2 | AG21: 5 | AH21: 2 | AI21: 5
A22: 129.016 | B22: Rejected | C22: 1.2 | D22: Centrica Business Solutions Optimisation UK Ltd | E22: CBS0-1 | F22: DNO connection | G22: DSF: Distributed generation (onsite) | H22: 2020-10-01 | I22: 2020-10-31 | J22: 01.10.20 - 31.10.20 (1 months) | K22: As per FFR framework agreement | L22: 700 | M22: 2300 | N22: 16 | O22: 700 | P22: 2300 | Q22: 16 | R22: 700 | S22: 2300 | T22: 16 | U22: 3.98 | V22: 0 | W22: 0 | AO22: 2
A23: 129.017 | B23: Rejected | C23: 1.2 | D23: BALANCE POWER | E23: IPSWA-1 | F23: DNO connection | G23: Bio Fuel | H23: 2020-10-01 | I23: 2020-10-31 | J23: 01.10.20 - 31.10.20 (1 months) | K23: As per FFR framework agreement | L23: 700 | M23: 1100 | N23: =IF(L23>M23, (2400-L23+M23)/100, IF(AND(L23="",M23="",L23=M23), "", IF(L23=M23,24,(M23-L23)/100))) -> 4 | O23: 700 | P23: 1100 | Q23: =IF(O23>P23, (2400-O23+P23)/100, IF(AND(O23="",P23="",O23=P23), "", IF(O23=P23,24,(P23-O23)/100))) -> 4 | R23: 700 | S23: 1100 | T23: =IF(R23>S23, (2400-R23+S23)/100, IF(AND(R23="",S23="",R23=S23), "", IF(R23=S23,24,(S23-R23)/100))) -> 4 | U23: =1.95*20 -> 39 | AO23: 20
A24: 129.018 | B24: Accepted | C24: NA | D24: BALANCE POWER | E24: IPSWA-1 | F24: DNO connection | G24: Bio Fuel | H24: 2020-10-01 | I24: 2020-10-31 | J24: 01.10.20 - 31.10.20 (1 months) | K24: As per FFR framework agreement | L24: 1100 | M24: 1900 | N24: =IF(L24>M24, (2400-L24+M24)/100, IF(AND(L24="",M24="",L24=M24), "", IF(L24=M24,24,(M24-L24)/100))) -> 8 | O24: 1100 | P24: 1900 | Q24: =IF(O24>P24, (2400-O24+P24)/100, IF(AND(O24="",P24="",O24=P24), "", IF(O24=P24,24,(P24-O24)/100))) -> 8 | R24: 1100 | S24: 1900 | T24: =IF(R24>S24, (2400-R24+S24)/100, IF(AND(R24="",S24="",R24=S24), "", IF(R24=S24,24,(S24-R24)/100))) -> 8 | U24: =1.95*20 -> 39 | AO24: 20
A25: 129.019 | B25: Rejected | C25: 1.2 | D25: BALANCE POWER | E25: IPSWA-1 | F25: DNO connection | G25: Bio Fuel | H25: 2020-10-01 | I25: 2020-10-31 | J25: 01.10.20 - 31.10.20 (1 months) | K25: As per FFR framework agreement | L25: 1900 | M25: 2300 | N25: 4 | O25: 1900 | P25: 2300 | Q25: 4 | R25: 1900 | S25: 2300 | T25: 4 | U25: 39 | AO25: 20
A26: 129.02 | B26: Accepted | C26: NA | D26: EQUIVALENCE ENERGY | E26: IPSWB-1 | F26: DNO connection | G26: Bio Fuel | H26: 2020-10-01 | I26: 2020-10-31 | J26: 01.10.20 - 31.10.20 (1 months) | K26: As per FFR framework agreement | L26: 700 | M26: 1100 | N26: =IF(L26>M26, (2400-L26+M26)/100, IF(AND(L26="",M26="",L26=M26), "", IF(L26=M26,24,(M26-L26)/100))) -> 4 | O26: 700 | P26: 1100 | Q26: =IF(O26>P26, (2400-O26+P26)/100, IF(AND(O26="",P26="",O26=P26), "", IF(O26=P26,24,(P26-O26)/100))) -> 4 | R26: 700 | S26: 1100 | T26: =IF(R26>S26, (2400-R26+S26)/100, IF(AND(R26="",S26="",R26=S26), "", IF(R26=S26,24,(S26-R26)/100))) -> 4 | U26: =1.55*20 -> 31 | AO26: 20
A27: =A26+0.001 -> 129.021 | B27: Accepted | C27: NA | D27: EQUIVALENCE ENERGY | E27: IPSWB-1 | F27: DNO connection | G27: Bio Fuel | H27: 2020-10-01 | I27: 2020-10-31 | J27: 01.10.20 - 31.10.20 (1 months) | K27: As per FFR framework agreement | L27: 1100 | M27: 1900 | N27: =IF(L27>M27, (2400-L27+M27)/100, IF(AND(L27="",M27="",L27=M27), "", IF(L27=M27,24,(M27-L27)/100))) -> 8 | O27: 1100 | P27: 1900 | Q27: =IF(O27>P27, (2400-O27+P27)/100, IF(AND(O27="",P27="",O27=P27), "", IF(O27=P27,24,(P27-O27)/100))) -> 8 | R27: 1100 | S27: 1900 | T27: =IF(R27>S27, (2400-R27+S27)/100, IF(AND(R27="",S27="",R27=S27), "", IF(R27=S27,24,(S27-R27)/100))) -> 8 | U27: =1.96*20 -> 39.2 | AO27: 20
A28: =A27+0.001 -> 129.022 | B28: Rejected | C28: 1.1 | D28: EQUIVALENCE ENERGY | E28: IPSWB-1 | F28: DNO connection | G28: Bio Fuel | H28: 2020-10-01 | I28: 2020-10-31 | J28: 01.10.20 - 31.10.20 (1 months) | K28: As per FFR framework agreement | L28: 1900 | M28: 2300 | N28: 4 | O28: 1900 | P28: 2300 | Q28: 4 | R28: 1900 | S28: 2300 | T28: 4 | U28: =1.55*20 -> 31 | AO28: 20
A29: =A28+0.001 -> 129.023 | B29: Rejected | C29: 1.2 | D29: BLOXWICH ENERGY STORAGE LIMITED | E29: ARNKB-1 | F29: DNO connection | G29: Battery | H29: 2020-09-30 | I29: 2020-10-31 | J29: 30.09.20 - 31.10.20 (1 months) | K29: As per FFR framework agreement | L29: 2300 | M29: 2300 | N29: =IF(L29>M29, (2400-L29+M29)/100, IF(AND(L29="",M29="",L29=M29), "", IF(L29=M29,24,(M29-L29)/100))) -> 24 | O29: 2300 | P29: 2300 | Q29: =IF(O29>P29, (2400-O29+P29)/100, IF(AND(O29="",P29="",O29=P29), "", IF(O29=P29,24,(P29-O29)/100))) -> 24 | R29: 2300 | S29: 2300 | T29: =IF(R29>S29, (2400-R29+S29)/100, IF(AND(R29="",S29="",R29=S29), "", IF(R29=S29,24,(S29-R29)/100))) -> 24 | U29: 513 | V29: 0 | W29: 0 | X29: YES | AC29: 15.2 | AD29: 38 | AE29: 38 | AF29: 15.2 | AG29: 38 | AH29: 15.2 | AI29: 38
A30: =A29+0.001 -> 129.024 | B30: Accepted | C30: NA | D30: First Renewable Alpha Limited | E30: TREGN-1 | F30: DNO connection | G30: Diesel | H30: 2020-10-01 | I30: 2020-10-31 | J30: 01.10.20 - 31.10.20 (1 months) | K30: as per FFR framework agreement | L30: 700 | M30: 1500 | N30: =IF(L30>M30, (2400-L30+M30)/100, IF(AND(L30="",M30="",L30=M30), "", IF(L30=M30,24,(M30-L30)/100))) -> 8 | O30: 700 | P30: 1500 | Q30: =IF(O30>P30, (2400-O30+P30)/100, IF(AND(O30="",P30="",O30=P30), "", IF(O30=P30,24,(P30-O30)/100))) -> 8 | R30: 700 | S30: 1500 | T30: =IF(R30>S30, (2400-R30+S30)/100, IF(AND(R30="",S30="",R30=S30), "", IF(R30=S30,24,(S30-R30)/100))) -> 8 | U30: 36 | AO30: 18
A31: =A30+0.001 -> 129.025 | B31: Rejected | C31: 1.2 | D31: First Renewable Alpha Limited | E31: TREGN-1 | F31: DNO connection | G31: Diesel | H31: 2020-10-01 | I31: 2020-10-31 | J31: 01.10.20 - 31.10.20 (1 months) | K31: as per FFR framework agreement | L31: 1500 | M31: 2300 | N31: 8 | O31: 1500 | P31: 2300 | Q31: 8 | R31: 1500 | S31: 2300 | T31: 8 | U31: 36 | AO31: 18
A32: 129.026 | B32: Accepted | C32: NA | D32: Open Energi Limited | E32: OPEN-1 | F32: DNO connection | G32: DSF: Load response | H32: 2020-09-30 | I32: 2020-10-31 | J32: 30.09.20 - 31.10.20 (1 months) | K32: As per FFR framework agreement | L32: 2300 | M32: 700 | N32: =IF(L32>M32, (2400-L32+M32)/100, IF(AND(L32="",M32="",L32=M32), "", IF(L32=M32,24,(M32-L32)/100))) -> 8 | O32: 2300 | P32: 700 | Q32: =IF(O32>P32, (2400-O32+P32)/100, IF(AND(O32="",P32="",O32=P32), "", IF(O32=P32,24,(P32-O32)/100))) -> 8 | R32: 2300 | S32: 700 | T32: =IF(R32>S32, (2400-R32+S32)/100, IF(AND(R32="",S32="",R32=S32), "", IF(R32=S32,24,(S32-R32)/100))) -> 8 | U32: 9.6 | AC32: 0.8 | AD32: 2 | AE32: 2 | AF32: 0.8 | AG32: 2 | AH32: 0.8 | AI32: 2 | AL32: A
A33: 129.027 | B33: Accepted | C33: NA | D33: Open Energi Limited | E33: OPEN-1 | F33: DNO connection | G33: DSF: Load response | H33: 2020-10-01 | I33: 2020-10-31 | J33: 01.10.20 - 31.10.20 (1 months) | K33: As per FFR framework agreement | L33: 700 | M33: 1500 | N33: =IF(L33>M33, (2400-L33+M33)/100, IF(AND(L33="",M33="",L33=M33), "", IF(L33=M33,24,(M33-L33)/100))) -> 8 | O33: 700 | P33: 2300 | Q33: =IF(O33>P33, (2400-O33+P33)/100, IF(AND(O33="",P33="",O33=P33), "", IF(O33=P33,24,(P33-O33)/100))) -> 16 | R33: 700 | S33: 2300 | T33: =IF(R33>S33, (2400-R33+S33)/100, IF(AND(R33="",S33="",R33=S33), "", IF(R33=S33,24,(S33-R33)/100))) -> 16 | U33: 11.2 | AC33: 0.8 | AD33: 2 | AE33: 2 | AF33: 0.8 | AG33: 2 | AH33: 0.8 | AI33: 2 | AL33: B
A34: 129.028 | B34: Accepted | C34: NA | D34: Open Energi Limited | E34: OPEN-1 | F34: DNO connection | G34: DSF: Load response | H34: 2020-10-01 | I34: 2020-10-31 | J34: 01.10.20 - 31.10.20 (1 months) | K34: As per FFR framework agreement | L34: 1500 | M34: 1900 | N34: 4 | U34: 7.8 | AC34: 0.4 | AD34: 1 | AE34: 1 | AF34: 0.4 | AG34: 1 | AH34: 0.4 | AI34: 1 | AL34: C
A35: 129.029 | B35: Accepted | C35: NA | D35: Open Energi Limited | E35: OPEN-1 | F35: DNO connection | G35: DSF: Load response | H35: 2020-10-01 | I35: 2020-10-31 | J35: 01.10.20 - 31.10.20 (1 months) | K35: As per FFR framework agreement | L35: 1900 | M35: 2300 | N35: 4 | U35: 11.2 | AC35: 0.8 | AD35: 2 | AE35: 2 | AF35: 0.8 | AG35: 2 | AH35: 0.8 | AI35: 2 | AL35: B
A36: 129.03 | B36: Accepted | C36: NA | D36: Open Energi Limited | E36: OPEN-2 | F36: DNO connection | G36: DSF: Storage (onsite) | H36: 2020-09-30 | I36: 2020-10-31 | J36: 30.09.20 - 31.10.20 (1 months) | K36: As per FFR framework agreement | L36: 2300 | M36: 700 | N36: 8 | O36: 2300 | P36: 700 | Q36: 8 | R36: 2300 | S36: 700 | T36: 8 | U36: 15.48 | AC36: 1.2 | AD36: 3 | AE36: 3 | AF36: 1.2 | AG36: 3 | AH36: 1.2 | AI36: 3 | AL36: D
A37: 129.031 | B37: Accepted | C37: NA | D37: Open Energi Limited | E37: OPEN-2 | F37: DNO connection | G37: DSF: Storage (onsite) | H37: 2020-10-01 | I37: 2020-10-31 | J37: 01.10.20 - 31.10.20 (1 months) | K37: As per FFR framework agreement | L37: 700 | M37: 2300 | N37: 16 | O37: 700 | P37: 2300 | Q37: 16 | R37: 700 | S37: 2300 | T37: 16 | U37: 18.48 | AC37: 1.2 | AD37: 3 | AE37: 3 | AF37: 1.2 | AG37: 3 | AH37: 1.2 | AI37: 3 | AL37: E
A38: 129.032 | B38: Accepted | C38: NA | D38: City Energy Management Services Ltd. | E38: CMFH-1 | F38: DNO connection | G38: DSF: Load response | H38: 2020-10-01 | I38: 2020-10-31 | J38: 01.10.20 - 31.10.20 (1 months) | K38: As per FFR framework agreement | L38: 700 | M38: 1500 | N38: 8 | O38: 700 | P38: 1500 | Q38: 8 | R38: 700 | S38: 1500 | T38: 8 | U38: 1.95 | AO38: 1
A39: 129.033 | B39: Rejected | C39: 1.2 | D39: City Energy Management Services Ltd. | E39: CMFH-1 | F39: DNO connection | G39: DSF: Load response | H39: 2020-10-01 | I39: 2020-10-31 | J39: 01.10.20 - 31.10.20 (1 months) | K39: As per FFR framework agreement | L39: 1900 | M39: 2300 | N39: 4 | O39: 1900 | P39: 2300 | Q39: 4 | R39: 1900 | S39: 2300 | T39: 4 | U39: 1.95 | AO39: 1
A40: 129.034 | B40: Accepted | C40: NA | D40: City Energy Management Services Ltd. | E40: CMFH-1 | F40: DNO connection | G40: DSF: Load response | H40: 2020-10-01 | I40: 2020-10-31 | J40: 01.10.20 - 31.10.20 (1 months) | K40: As per FFR framework agreement | O40: 1500 | P40: 1900 | Q40: 4 | R40: 1500 | S40: 1900 | T40: 4 | U40: 1.95 | AO40: 1
A41: 129.035 | B41: Accepted | C41: NA | D41: EDF Energy Customers Limited | E41: AG-AEDF01 | F41: DNO connection | G41: DSF: Storage (for export) | H41: 2020-09-30 | I41: 2020-10-31 | J41: 30.09.20 - 31.10.20 (1 months) | K41: As per FFR framework agreement | L41: 2300 | M41: 2300 | N41: =IF(L41>M41, (2400-L41+M41)/100, IF(AND(L41="",M41="",L41=M41), "", IF(L41=M41,24,(M41-L41)/100))) -> 24 | Q41: =IF(O41>P41, (2400-O41+P41)/100, IF(AND(O41="",P41="",O41=P41), "", IF(O41=P41,24,(P41-O41)/100))) ->  | T41: =IF(R41>S41, (2400-R41+S41)/100, IF(AND(R41="",S41="",R41=S41), "", IF(R41=S41,24,(S41-R41)/100))) ->  | U41: 37.5 | AC41: 2.4 | AD41: 6 | AE41: 6 | AF41: 2.4 | AG41: 6 | AH41: 2.4 | AI41: 6
A42: 129.036 | B42: Accepted | C42: NA | D42: EDF Energy Customers Limited | E42: AG-AEDF01 | F42: DNO connection | G42: DSF: Storage (for export) | H42: 2020-09-30 | I42: 2020-10-31 | J42: 30.09.20 - 31.10.20 (1 months) | K42: As per FFR framework agreement | N42: =IF(L42>M42, (2400-L42+M42)/100, IF(AND(L42="",M42="",L42=M42), "", IF(L42=M42,24,(M42-L42)/100))) ->  | O42: 2300 | P42: 2300 | Q42: =IF(O42>P42, (2400-O42+P42)/100, IF(AND(O42="",P42="",O42=P42), "", IF(O42=P42,24,(P42-O42)/100))) -> 24 | R42: 2300 | S42: 2300 | T42: =IF(R42>S42, (2400-R42+S42)/100, IF(AND(R42="",S42="",R42=S42), "", IF(R42=S42,24,(S42-R42)/100))) -> 24 | U42: 37.5 | AC42: 2.4 | AD42: 6 | AE42: 6 | AF42: 2.4 | AG42: 6 | AH42: 2.4 | AI42: 6
A43: 129.037 | B43: Accepted | C43: NA | D43: EDF Energy Customers Limited | E43: AG -GEDF01 | F43: DNO connection | G43: DSF: Storage (for export) | H43: 2020-09-30 | I43: 2020-10-31 | J43: 30.09.20 - 31.10.20 (1 months) | K43: As per FFR framework agreement | L43: 2300 | M43: 700 | N43: 8 | O43: 2300 | P43: 700 | Q43: 8 | R43: 2300 | S43: 700 | T43: 8 | U43: 114 | AC43: 8 | AD43: 20 | AE43: 20 | AF43: 8 | AG43: 20 | AH43: 8 | AI43: 20
A44: 129.038 | B44: Accepted | C44: NA | D44: EDF Energy Customers Limited | E44: AG -GEDF01 | F44: DNO connection | G44: DSF: Storage (for export) | H44: 2020-10-01 | I44: 2020-10-31 | J44: 01.10.20 - 31.10.20 (1 months) | K44: As per FFR framework agreement | L44: 700 | M44: 1500 | N44: 8 | O44: 700 | P44: 1500 | Q44: 8 | R44: 700 | S44: 1500 | T44: 8 | U44: 133 | AC44: 8 | AD44: 20 | AE44: 20 | AF44: 8 | AG44: 20 | AH44: 8 | AI44: 20
A45: 129.039 | B45: Accepted | C45: NA | D45: EDF Energy Customers Limited | E45: AG -GEDF01 | F45: DNO connection | G45: DSF: Storage (for export) | H45: 2020-10-01 | I45: 2020-10-31 | J45: 01.10.20 - 31.10.20 (1 months) | K45: As per FFR framework agreement | L45: 1500 | M45: 2300 | N45: 8 | O45: 1500 | P45: 2300 | Q45: 8 | R45: 1500 | S45: 2300 | T45: 8 | U45: 140 | AC45: 8 | AD45: 20 | AE45: 20 | AF45: 8 | AG45: 20 | AH45: 8 | AI45: 20
A46: 129.04 | B46: Accepted | C46: NA | D46: EDF Energy Customers Limited | E46: AG -GEDF02 | F46: DNO connection | G46: DSF: Storage (for export) | H46: 2020-09-30 | I46: 2020-10-31 | J46: 30.09.20 - 31.10.20 (1 months) | K46: As per FFR framework agreement | L46: 2300 | M46: 700 | N46: 8 | O46: 2300 | P46: 700 | Q46: 8 | R46: 2300 | S46: 700 | T46: 8 | U46: 110 | AC46: 8 | AD46: 20 | AE46: 20 | AF46: 8 | AG46: 20 | AH46: 8 | AI46: 20
A47: 129.041 | B47: Accepted | C47: NA | D47: EDF Energy Customers Limited | E47: AG -GEDF02 | F47: DNO connection | G47: DSF: Storage (for export) | H47: 2020-10-01 | I47: 2020-10-31 | J47: 01.10.20 - 31.10.20 (1 months) | K47: As per FFR framework agreement | L47: 700 | M47: 1500 | N47: 8 | O47: 700 | P47: 1500 | Q47: 8 | R47: 700 | S47: 1500 | T47: 8 | U47: 129 | AC47: 8 | AD47: 20 | AE47: 20 | AF47: 8 | AG47: 20 | AH47: 8 | AI47: 20
A48: 129.042 | B48: Accepted | C48: NA | D48: EDF Energy Customers Limited | E48: AG -GEDF02 | F48: DNO connection | G48: DSF: Storage (for export) | H48: 2020-10-01 | I48: 2020-10-31 | J48: 01.10.20 - 31.10.20 (1 months) | K48: As per FFR framework agreement | L48: 1500 | M48: 2300 | N48: 8 | O48: 1500 | P48: 2300 | Q48: 8 | R48: 1500 | S48: 2300 | T48: 8 | U48: 136 | AC48: 8 | AD48: 20 | AE48: 20 | AF48: 8 | AG48: 20 | AH48: 8 | AI48: 20
A49: 129.043 | B49: Accepted | C49: NA | D49: EDF Energy Customers Limited | E49: EDFE-2 | F49: DNO connection | G49: DSF: Storage (for export) | H49: 2020-09-30 | I49: 2020-10-31 | J49: 30.09.20 - 31.10.20 (1 months) | K49: As per FFR framework agreement | L49: 2300 | M49: 700 | N49: 8 | O49: 2300 | P49: 700 | Q49: 8 | R49: 2300 | S49: 700 | T49: 8 | U49: 64 | AC49: 3.2 | AD49: 8 | AE49: 8 | AF49: 3.2 | AG49: 8 | AH49: 3.2 | AI49: 8
A50: 129.044 | B50: Accepted | C50: NA | D50: EDF Energy Customers Limited | E50: EDFE-2 | F50: DNO connection | G50: DSF: Storage (for export) | H50: 2020-10-01 | I50: 2020-10-31 | J50: 01.10.20 - 31.10.20 (1 months) | K50: As per FFR framework agreement | L50: 700 | M50: 1500 | N50: 8 | O50: 700 | P50: 1500 | Q50: 8 | R50: 700 | S50: 1500 | T50: 8 | U50: 68.8 | AC50: 3.2 | AD50: 8 | AE50: 8 | AF50: 3.2 | AG50: 8 | AH50: 3.2 | AI50: 8
A51: 129.045 | B51: Accepted | C51: NA | D51: EDF Energy Customers Limited | E51: EDFE-2 | F51: DNO connection | G51: DSF: Storage (for export) | H51: 2020-10-01 | I51: 2020-10-31 | J51: 01.10.20 - 31.10.20 (1 months) | K51: As per FFR framework agreement | L51: 1500 | M51: 2300 | N51: 8 | O51: 1500 | P51: 2300 | Q51: 8 | R51: 1500 | S51: 2300 | T51: 8 | U51: 68.8 | AC51: 3.2 | AD51: 8 | AE51: 8 | AF51: 3.2 | AG51: 8 | AH51: 3.2 | AI51: 8
A52: 129.046 | B52: Accepted | C52: NA | D52: EDF Energy Customers Limited | E52: EDFE-6 | F52: DNO connection | G52: DSF: Storage (for export) | H52: 2020-09-30 | I52: 2020-10-31 | J52: 30.09.20 - 31.10.20 (1 months) | K52: As per FFR framework agreement | L52: 2300 | M52: 700 | N52: 8 | O52: 2300 | P52: 700 | Q52: 8 | R52: 2300 | S52: 700 | T52: 8 | U52: 56.7 | AC52: 2.8 | AD52: 7 | AE52: 7 | AF52: 2.8 | AG52: 7 | AH52: 2.8 | AI52: 7
A53: 129.047 | B53: Accepted | C53: NA | D53: EDF Energy Customers Limited | E53: EDFE-6 | F53: DNO connection | G53: DSF: Storage (for export) | H53: 2020-10-01 | I53: 2020-10-31 | J53: 01.10.20 - 31.10.20 (1 months) | K53: As per FFR framework agreement | L53: 700 | M53: 1500 | N53: 8 | O53: 700 | P53: 1500 | Q53: 8 | R53: 700 | S53: 1500 | T53: 8 | U53: 60.9 | AC53: 2.8 | AD53: 7 | AE53: 7 | AF53: 2.8 | AG53: 7 | AH53: 2.8 | AI53: 7
A54: 129.048 | B54: Accepted | C54: NA | D54: EDF Energy Customers Limited | E54: EDFE-6 | F54: DNO connection | G54: DSF: Storage (for export) | H54: 2020-10-01 | I54: 2020-10-31 | J54: 01.10.20 - 31.10.20 (1 months) | K54: As per FFR framework agreement | L54: 1500 | M54: 2300 | N54: 8 | O54: 1500 | P54: 2300 | Q54: 8 | R54: 1500 | S54: 2300 | T54: 8 | U54: 60.9 | AC54: 2.8 | AD54: 7 | AE54: 7 | AF54: 2.8 | AG54: 7 | AH54: 2.8 | AI54: 7
A55: 129.049 | B55: Accepted | C55: NA | D55: Flexitricity Limited | E55: AG-EFLX01 | F55: DNO connection | G55: DSF: Storage (for export) | H55: 2020-09-30 | I55: 2020-10-31 | J55: 30.09.20 - 31.10.20 (1 months) | K55: As per FFR framework agreement | L55: 2300 | M55: 2300 | N55: 24 | O55: 2300 | P55: 2300 | Q55: 24 | R55: 2300 | S55: 2300 | T55: =IF(R55>S55, (2400-R55+S55)/100, IF(AND(R55="",S55="",R55=S55), "", IF(R55=S55,24,(S55-R55)/100))) -> 24 | U55: 192.85 | X55: YES | AC55: 7.6 | AD55: 19 | AE55: 19 | AF55: 7.6 | AG55: 19 | AH55: 7.6 | AI55: 19
A56: 129.05 | B56: Rejected | C56: 1.2 | D56: Flexitricity Limited | E56: AG-BFLX01 | F56: DNO connection | G56: DSF: Storage (for export) | H56: 2020-09-30 | I56: 2020-10-31 | J56: 30.09.20 - 31.10.20 (1 months) | K56: As per FFR framework agreement | L56: 2300 | M56: 2300 | N56: 24 | O56: 2300 | P56: 2300 | Q56: 24 | R56: 2300 | S56: 2300 | T56: =IF(R56>S56, (2400-R56+S56)/100, IF(AND(R56="",S56="",R56=S56), "", IF(R56=S56,24,(S56-R56)/100))) -> 24 | U56: 75.32 | X56: YES | AC56: 2.8 | AD56: 7 | AE56: 7 | AF56: 2.8 | AG56: 7 | AH56: 2.8 | AI56: 7
A57: 129.051 | B57: Accepted | C57: NA | D57: Flexitricity Limited | E57: AG-FLX00L | F57: DNO connection | G57: DSF: Storage (for export) | H57: 2020-09-30 | I57: 2020-10-31 | J57: 30.09.20 - 31.10.20 (1 months) | K57: As per FFR framework agreement | L57: 2300 | M57: 2300 | N57: 24 | O57: 2300 | P57: 2300 | Q57: 24 | R57: 2300 | S57: 2300 | T57: 24 | U57: 36.04 | X57: YES | AC57: 1.6 | AD57: 4 | AE57: 4 | AF57: 1.6 | AG57: 4 | AH57: 1.6 | AI57: 4
A58: 129.052 | B58: Rejected | C58: 1.2 | D58: Flexitricity Limited | E58: SFLEX-3 | F58: DNO connection | G58: DSF: Load response | H58: 2020-10-01 | I58: 2020-10-31 | J58: 01.10.20 - 31.10.20 (1 months) | K58: As per FFR framework agreement | L58: 700 | M58: 1500 | N58: 8 | O58: 700 | P58: 1500 | Q58: 8 | R58: 700 | S58: 1500 | T58: 8 | U58: 18 | AN58: 6 | AO58: 6
A59: 129.053 | B59: Rejected | C59: 1.2 | D59: Flexitricity Limited | E59: SFLEX-3 | F59: DNO connection | G59: DSF: Load response | H59: 2020-10-01 | I59: 2020-10-31 | J59: 01.10.20 - 31.10.20 (1 months) | K59: As per FFR framework agreement | L59: 1500 | M59: 2300 | N59: 8 | O59: 1500 | P59: 2300 | Q59: 8 | R59: 1500 | S59: 2300 | T59: 8 | U59: 19.5 | AN59: 6 | AO59: 6
A60: 129.054 | B60: Rejected | C60: 4 | D60: BESS HoldCo 2 Ltd | E60: DBESS-22 | F60: DNO connection | G60: Battery | H60: 2020-10-01 | I60: 2020-10-31 | J60: 01.10.20 - 31.10.20 (1 months) | K60: As per FFR framework agreement | L60: 700 | M60: 2300 | N60: =IF(L60>M60, (2400-L60+M60)/100, IF(AND(L60="",M60="",L60=M60), "", IF(L60=M60,24,(M60-L60)/100))) -> 16 | O60: 700 | P60: 2300 | Q60: =IF(O60>P60, (2400-O60+P60)/100, IF(AND(O60="",P60="",O60=P60), "", IF(O60=P60,24,(P60-O60)/100))) -> 16 | R60: 700 | S60: 2300 | T60: =IF(R60>S60, (2400-R60+S60)/100, IF(AND(R60="",S60="",R60=S60), "", IF(R60=S60,24,(S60-R60)/100))) -> 16 | U60: 64 | AC60: 4 | AD60: 10 | AE60: 10 | AF60: 4 | AG60: 10 | AH60: 4 | AI60: 10 | AL60: A | AM60: Cannot be accepted with B or C
A61: 129.055 | B61: Accepted | C61: NA | D61: BESS HoldCo 2 Ltd | E61: DBESS-22 | F61: DNO connection | G61: Battery | H61: 2020-10-01 | I61: 2020-10-31 | J61: 01.10.20 - 31.10.20 (1 months) | K61: As per FFR framework agreement | L61: 700 | M61: 1500 | N61: =IF(L61>M61, (2400-L61+M61)/100, IF(AND(L61="",M61="",L61=M61), "", IF(L61=M61,24,(M61-L61)/100))) -> 8 | O61: 700 | P61: 1500 | Q61: =IF(O61>P61, (2400-O61+P61)/100, IF(AND(O61="",P61="",O61=P61), "", IF(O61=P61,24,(P61-O61)/100))) -> 8 | R61: 700 | S61: 1500 | T61: =IF(R61>S61, (2400-R61+S61)/100, IF(AND(R61="",S61="",R61=S61), "", IF(R61=S61,24,(S61-R61)/100))) -> 8 | U61: 58.5 | AC61: 4 | AD61: 10 | AE61: 10 | AF61: 4 | AG61: 10 | AH61: 4 | AI61: 10 | AL61: B | AM61: Cannot be accepted with A
A62: 129.056 | B62: Accepted | C62: NA | D62: BESS HoldCo 2 Ltd | E62: DBESS-22 | F62: DNO connection | G62: Battery | H62: 2020-10-01 | I62: 2020-10-31 | J62: 01.10.20 - 31.10.20 (1 months) | K62: As per FFR framework agreement | L62: 1500 | M62: 2300 | N62: 8 | O62: 1500 | P62: 2300 | Q62: 8 | R62: 1500 | S62: 2300 | T62: 8 | U62: 67.5 | AC62: 4 | AD62: 10 | AE62: 10 | AF62: 4 | AG62: 10 | AH62: 4 | AI62: 10 | AL62: C | AM62: Cannot be accepted with A
A63: 129.057 | B63: Rejected | C63: 1.2 | D63: BESS HoldCo 3 Ltd | E63: DBESSH-33 | F63: DNO connection | G63: Battery | H63: 2020-09-30 | I63: 2020-10-31 | J63: 30.09.20 - 31.10.20 (1 months) | K63: As per FFR framework agreement | L63: 2300 | M63: 700 | N63: 8 | O63: 2300 | P63: 700 | Q63: 8 | R63: 2300 | S63: 700 | T63: 8 | U63: =12*AD63 -> 108 | AC63: 3.6 | AD63: 9 | AE63: 9 | AF63: 3.6 | AG63: 9 | AH63: 3.6 | AI63: 9 | AL63: D
A64: 129.058 | B64: Rejected | C64: 1.2 | D64: BESS HoldCo 3 Ltd | E64: DBESSH-33 | F64: DNO connection | G64: Battery | H64: 2020-10-01 | I64: 2020-10-31 | J64: 01.10.20 - 31.10.20 (1 months) | K64: As per FFR framework agreement | L64: 700 | M64: 1500 | N64: 8 | O64: 700 | P64: 1500 | Q64: 8 | R64: 700 | S64: 1500 | T64: 8 | U64: =12*AD64 -> 108 | AC64: 3.6 | AD64: 9 | AE64: 9 | AF64: 3.6 | AG64: 9 | AH64: 3.6 | AI64: 9 | AL64: D
A65: 129.059 | B65: Rejected | C65: 1.2 | D65: BESS HoldCo 3 Ltd | E65: DBESSH-33 | F65: DNO connection | G65: Battery | H65: 2020-10-01 | I65: 2020-10-31 | J65: 01.10.20 - 31.10.20 (1 months) | K65: As per FFR framework agreement | L65: 1500 | M65: 2300 | N65: 8 | O65: 1500 | P65: 2300 | Q65: 8 | R65: 1500 | S65: 2300 | T65: 8 | U65: =12*AD65 -> 108 | AC65: 3.6 | AD65: 9 | AE65: 9 | AF65: 3.6 | AG65: 9 | AH65: 3.6 | AI65: 9 | AL65: D
A66: =A65+0.001 -> 129.06 | B66: Accepted | C66: NA | D66: Kiwi Power Ltd | E66: KIWIE-2 | F66: DNO connection | G66: DSF: Storage (onsite) | H66: 2020-09-30 | I66: 2020-10-31 | J66: 30.09.20 - 31.10.20 (1 months) | K66: As per FFR framework agreement | L66: 2300 | M66: 700 | N66: =IF(L66>M66, (2400-L66+M66)/100, IF(AND(L66="",M66="",L66=M66), "", IF(L66=M66,24,(M66-L66)/100))) -> 8 | O66: 2300 | P66: 700 | Q66: =IF(O66>P66, (2400-O66+P66)/100, IF(AND(O66="",P66="",O66=P66), "", IF(O66=P66,24,(P66-O66)/100))) -> 8 | R66: 2300 | S66: 700 | T66: =IF(R66>S66, (2400-R66+S66)/100, IF(AND(R66="",S66="",R66=S66), "", IF(R66=S66,24,(S66-R66)/100))) -> 8 | U66: 21.24 | AC66: 1.6 | AD66: 4 | AE66: 4 | AF66: 1.6 | AG66: 4 | AH66: 1.6 | AI66: 4
A67: =A66+0.001 -> 129.061 | B67: Accepted | C67: NA | D67: Kiwi Power Ltd | E67: KIWIE-2 | F67: DNO connection | G67: DSF: Storage (onsite) | H67: 2020-10-01 | I67: 2020-10-31 | J67: 01.10.20 - 31.10.20 (1 months) | K67: As per FFR framework agreement | L67: 700 | M67: 1500 | N67: =IF(L67>M67, (2400-L67+M67)/100, IF(AND(L67="",M67="",L67=M67), "", IF(L67=M67,24,(M67-L67)/100))) -> 8 | O67: 700 | P67: 1500 | Q67: =IF(O67>P67, (2400-O67+P67)/100, IF(AND(O67="",P67="",O67=P67), "", IF(O67=P67,24,(P67-O67)/100))) -> 8 | R67: 700 | S67: 1500 | T67: =IF(R67>S67, (2400-R67+S67)/100, IF(AND(R67="",S67="",R67=S67), "", IF(R67=S67,24,(S67-R67)/100))) -> 8 | U67: 24.44 | AC67: 1.6 | AD67: 4 | AE67: 4 | AF67: 1.6 | AG67: 4 | AH67: 1.6 | AI67: 4
A68: =A65+0.003 -> 129.062 | B68: Accepted | C68: NA | D68: Kiwi Power Ltd | E68: KIWIE-2 | F68: DNO connection | G68: DSF: Storage (onsite) | H68: 2020-10-01 | I68: 2020-10-31 | J68: =IFERROR(TEXT(H68,"DD.MM.YY")&" - "&TEXT(I68,"DD.MM.YY")&" ("&DATEDIF(H68,I68+1,"m")&" months)","Tender End Date is Before Start Date") -> 01.10.20 - 31.10.20 (1 months) | K68: As per FFR framework agreement | L68: 1500 | M68: 2300 | N68: 8 | O68: 1500 | P68: 2300 | Q68: 8 | R68: 1500 | S68: 2300 | T68: 8 | U68: 27.52 | AC68: 1.6 | AD68: 4 | AE68: 4 | AF68: 1.6 | AG68: 4 | AH68: 1.6 | AI68: 4
A69: =A68+0.001 -> 129.063 | B69: Accepted | C69: NA | D69: Kiwi Power Ltd | E69: KIWIDA-1 | F69: DNO connection | G69: DSF: Storage (onsite) | H69: 2020-09-30 | I69: 2020-10-31 | J69: =IFERROR(TEXT(H69,"DD.MM.YY")&" - "&TEXT(I69,"DD.MM.YY")&" ("&DATEDIF(H69,I69+1,"m")&" months)","Tender End Date is Before Start Date") -> 30.09.20 - 31.10.20 (1 months) | K69: As per FFR framework agreement | L69: 2300 | M69: 700 | N69: 8 | O69: 2300 | P69: 700 | Q69: 8 | R69: 2300 | S69: 700 | T69: 8 | U69: 10.62 | AC69: 0.8 | AD69: 2 | AE69: 2 | AF69: 0.8 | AG69: 2 | AH69: 0.8 | AI69: 2
A70: =A69+0.001 -> 129.064 | B70: Accepted | C70: NA | D70: Kiwi Power Ltd | E70: KIWIDA-1 | F70: DNO connection | G70: DSF: Storage (onsite) | H70: 2020-10-01 | I70: 2020-10-31 | J70: =IFERROR(TEXT(H70,"DD.MM.YY")&" - "&TEXT(I70,"DD.MM.YY")&" ("&DATEDIF(H70,I70+1,"m")&" months)","Tender End Date is Before Start Date") -> 01.10.20 - 31.10.20 (1 months) | K70: As per FFR framework agreement | L70: 700 | M70: 1500 | N70: 8 | O70: 700 | P70: 1500 | Q70: 8 | R70: 700 | S70: 1500 | T70: 8 | U70: 12.22 | AC70: 0.8 | AD70: 2 | AE70: 2 | AF70: 0.8 | AG70: 2 | AH70: 0.8 | AI70: 2
A71: =A70+0.001 -> 129.065 | B71: Accepted | C71: NA | D71: Kiwi Power Ltd | E71: KIWIDA-1 | F71: DNO connection | G71: DSF: Storage (onsite) | H71: 2020-10-01 | I71: 2020-10-31 | J71: 01.10.20 - 31.10.20 (1 months) | K71: As per FFR framework agreement | L71: 1500 | M71: 2300 | N71: 8 | O71: 1500 | P71: 2300 | Q71: 8 | R71: 1500 | S71: 2300 | T71: 8 | U71: 13.76 | AC71: 0.8 | AD71: 2 | AE71: 2 | AF71: 0.8 | AG71: 2 | AH71: 0.8 | AI71: 2
A72: =A71+0.001 -> 129.066 | B72: Accepted | C72: NA | D72: Kiwi Power Ltd | E72: KIWIS-1 | F72: DNO connection | G72: Multiple Fuel Type | H72: 2020-10-01 | I72: 2020-10-31 | J72: =IFERROR(TEXT(H72,"DD.MM.YY")&" - "&TEXT(I72,"DD.MM.YY")&" ("&DATEDIF(H72,I72+1,"m")&" months)","Tender End Date is Before Start Date") -> 01.10.20 - 31.10.20 (1 months) | K72: As per FFR framework agreement | L72: 700 | M72: 1500 | N72: 8 | O72: 700 | P72: 1500 | Q72: 8 | R72: 700 | S72: 1500 | T72: 8 | U72: 26.6 | AO72: 14
A73: 129.067 | B73: Rejected | C73: 1.2 | D73: Kiwi Power Ltd | E73: KIWIS-1 | F73: DNO connection | G73: Multiple Fuel Type | H73: 2020-10-01 | I73: 2020-10-31 | J73: 01.10.20 - 31.10.20 (1 months) | K73: As per FFR framework agreement | L73: 1500 | M73: 2300 | N73: 8 | O73: 1500 | P73: 2300 | Q73: 8 | R73: 1500 | S73: 2300 | T73: 8 | U73: 31.78 | AO73: 14
A74: 129.068 | B74: Accepted | C74: NA | D74: Kiwi Power Ltd | E74: KIWIE-4 | F74: DNO connection | G74: DSF: Storage (onsite) | H74: 2020-09-30 | I74: 2020-10-31 | J74: 30.09.20 - 31.10.20 (1 months) | K74: As per FFR framework agreement | L74: 2300 | M74: 700 | N74: 8 | O74: 2300 | P74: 700 | Q74: 8 | R74: 2300 | S74: 700 | T74: 8 | U74: 113.61 | AC74: 8.4 | AD74: 21 | AE74: 21 | AF74: 8.4 | AG74: 21 | AH74: 8.4 | AI74: 21
A75: 129.069 | B75: Accepted | C75: NA | D75: Kiwi Power Ltd | E75: KIWIE-4 | F75: DNO connection | G75: DSF: Storage (onsite) | H75: 2020-10-01 | I75: 2020-10-31 | J75: 01.10.20 - 31.10.20 (1 months) | K75: As per FFR framework agreement | L75: 700 | M75: 1500 | N75: 8 | O75: 700 | P75: 1500 | Q75: 8 | R75: 700 | S75: 1500 | T75: 8 | U75: 131.46 | AC75: 8.4 | AD75: 21 | AE75: 21 | AF75: 8.4 | AG75: 21 | AH75: 8.4 | AI75: 21
A76: 129.07 | B76: Accepted | C76: NA | D76: Kiwi Power Ltd | E76: KIWIE-4 | F76: DNO connection | G76: DSF: Storage (onsite) | H76: 2020-10-01 | I76: 2020-10-31 | J76: 01.10.20 - 31.10.20 (1 months) | K76: As per FFR framework agreement | L76: 1500 | M76: 2300 | N76: 8 | O76: 1500 | P76: 2300 | Q76: 8 | R76: 1500 | S76: 2300 | T76: 8 | U76: 147.63 | AC76: 8.4 | AD76: 21 | AE76: 21 | AF76: 8.4 | AG76: 21 | AH76: 8.4 | AI76: 21
A77: 129.071 | B77: Accepted | C77: NA | D77: Habitat Energy Limited | E77: HAB4-FFR | F77: DNO connection | G77: DSF: Storage (for export) | H77: 2020-09-30 | I77: 2020-10-31 | J77: 30.09.20 - 31.10.20 (1 months) | K77: As per FFR framework agreement | L77: 2300 | M77: 700 | N77: =IF(L77>M77, (2400-L77+M77)/100, IF(AND(L77="",M77="",L77=M77), "", IF(L77=M77,24,(M77-L77)/100))) -> 8 | O77: 2300 | P77: 700 | Q77: =IF(O77>P77, (2400-O77+P77)/100, IF(AND(O77="",P77="",O77=P77), "", IF(O77=P77,24,(P77-O77)/100))) -> 8 | R77: 2300 | S77: 700 | T77: =IF(R77>S77, (2400-R77+S77)/100, IF(AND(R77="",S77="",R77=S77), "", IF(R77=S77,24,(S77-R77)/100))) -> 8 | U77: 170.64 | V77: - | W77: - | X77: - | AC77: 14.4 | AD77: 36 | AE77: 36 | AF77: 14.4 | AG77: 36 | AH77: 14.4 | AI77: 36
A78: 129.072 | B78: Accepted | C78: NA | D78: Habitat Energy Limited | E78: HAB4-FFR | F78: DNO connection | G78: DSF: Storage (for export) | H78: 2020-10-01 | I78: 2020-10-31 | J78: 01.10.20 - 31.10.20 (1 months) | K78: As per FFR framework agreement | L78: 700 | M78: 1500 | N78: =IF(L78>M78, (2400-L78+M78)/100, IF(AND(L78="",M78="",L78=M78), "", IF(L78=M78,24,(M78-L78)/100))) -> 8 | O78: 700 | P78: 1500 | Q78: =IF(O78>P78, (2400-O78+P78)/100, IF(AND(O78="",P78="",O78=P78), "", IF(O78=P78,24,(P78-O78)/100))) -> 8 | R78: 700 | S78: 1500 | T78: =IF(R78>S78, (2400-R78+S78)/100, IF(AND(R78="",S78="",R78=S78), "", IF(R78=S78,24,(S78-R78)/100))) -> 8 | U78: 206.28 | V78: - | W78: - | X78: - | AC78: 14.4 | AD78: 36 | AE78: 36 | AF78: 14.4 | AG78: 36 | AH78: 14.4 | AI78: 36
A79: =A78+0.001 -> 129.073 | B79: Accepted | C79: NA | D79: Habitat Energy Limited | E79: HAB4-FFR | F79: DNO connection | G79: DSF: Storage (for export) | H79: 2020-10-01 | I79: 2020-10-31 | J79: 01.10.20 - 31.10.20 (1 months) | K79: As per FFR framework agreement | L79: 1500 | M79: 2300 | N79: 8 | O79: 1500 | P79: 2300 | Q79: 8 | R79: 1500 | S79: 2300 | T79: 8 | U79: 233.28 | V79: - | W79: - | X79: - | AC79: 14.4 | AD79: 36 | AE79: 36 | AF79: 14.4 | AG79: 36 | AH79: 14.4 | AI79: 36
A80: 129.074 | B80: Accepted | C80: NA | D80: Habitat Energy Limited | E80: HAB2-FFR | F80: DNO connection | G80: DSF: Storage (for export) | H80: 2020-09-30 | I80: 2020-10-31 | J80: 30.09.20 - 31.10.20 (1 months) | K80: As per FFR framework agreement | L80: 2300 | M80: 700 | N80: 8 | O80: 2300 | P80: 700 | Q80: 8 | R80: 2300 | S80: 700 | T80: 8 | U80: 45 | X80: - | AC80: 2 | AD80: 5 | AE80: 5 | AF80: 2 | AG80: 5 | AH80: 2 | AI80: 5
A81: 129.075 | B81: Accepted | C81: NA | D81: Habitat Energy Limited | E81: HAB2-FFR | F81: DNO connection | G81: DSF: Storage (for export) | H81: 2020-10-01 | I81: 2020-10-31 | J81: 01.10.20 - 31.10.20 (1 months) | K81: As per FFR framework agreement | L81: 700 | M81: 1500 | N81: 8 | O81: 700 | P81: 1500 | Q81: 8 | R81: 700 | S81: 1500 | T81: 8 | U81: 48 | X81: - | AC81: 2 | AD81: 5 | AE81: 5 | AF81: 2 | AG81: 5 | AH81: 2 | AI81: 5
A82: 129.076 | B82: Accepted | C82: NA | D82: Habitat Energy Limited | E82: HAB2-FFR | F82: DNO connection | G82: DSF: Storage (for export) | H82: 2020-10-01 | I82: 2020-10-31 | J82: 01.10.20 - 31.10.20 (1 months) | K82: As per FFR framework agreement | L82: 1500 | M82: 2300 | N82: 8 | O82: 1500 | P82: 2300 | Q82: 8 | R82: 1500 | S82: 2300 | T82: 8 | U82: 48 | X82: - | AC82: 2 | AD82: 5 | AE82: 5 | AF82: 2 | AG82: 5 | AH82: 2 | AI82: 5
A83: 129.077 | B83: Rejected | C83: 1.2 | D83: Habitat Energy Limited | E83: AG-HEL00G | F83: DNO connection | G83: DSF: Storage (for export) | H83: 2020-09-30 | I83: 2020-10-31 | J83: 30.09.20 - 31.10.20 (1 months) | K83: As per FFR framework agreement | L83: 2300 | M83: 2300 | N83: 24 | O83: 2300 | P83: 2300 | Q83: 24 | R83: 2300 | S83: 2300 | T83: 24 | U83: 499.8 | X83: Yes | AC83: 19.6 | AD83: 49 | AE83: 49 | AF83: 19.6 | AG83: 49 | AH83: 19.6 | AI83: 49
A84: 129.078 | B84: Rejected | C84: 1.2 | D84: Habitat Energy Limited | E84: AG-HEL01H | F84: DNO connection | G84: DSF: Storage (for export) | H84: 2020-09-30 | I84: 2020-10-31 | J84: 30.09.20 - 31.10.20 (1 months) | K84: As per FFR framework agreement | L84: 2300 | M84: 2300 | N84: 24 | O84: 2300 | P84: 2300 | Q84: 24 | R84: 2300 | S84: 2300 | T84: 24 | U84: 177.6 | X84: Yes | AC84: 6.4 | AD84: 16 | AE84: 16 | AF84: 6.4 | AG84: 16 | AH84: 6.4 | AI84: 16
A85: =A84+0.003 -> 129.081 | B85: Rejected | C85: 4 | D85: npower | E85: NPFRD-1 | F85: DNO connection | G85: Battery | H85: 2020-09-30 | I85: 2020-10-31 | J85: 30.09.20 - 31.10.20 (1 months) | K85: As per FFR framework agreement | L85: 2300 | M85: 2300 | N85: 24 | O85: 2300 | P85: 2300 | Q85: 24 | R85: 2300 | S85: 2300 | T85: 24 | U85: 24 | AC85: 1.6 | AD85: 4 | AE85: 4 | AF85: 1.6 | AG85: 4 | AH85: 1.6 | AI85: 4 | AL85: A | AM85: mutually exclusive from tenders B&C
A86: 129.082 | B86: Accepted | C86: NA | D86: npower | E86: NPFRD-1 | F86: DNO connection | G86: Battery | H86: 2020-09-30 | I86: 2020-10-31 | J86: 30.09.20 - 31.10.20 (1 months) | K86: As per FFR framework agreement | L86: 2300 | M86: 700 | N86: 8 | O86: 2300 | P86: 700 | Q86: 8 | R86: 2300 | S86: 700 | T86: 8 | U86: 23.6 | AC86: 1.6 | AD86: 4 | AE86: 4 | AF86: 1.6 | AG86: 4 | AH86: 1.6 | AI86: 4 | AL86: B | AM86: Mutually exclusive from tender A
A87: =A86+0.001 -> 129.083 | B87: Accepted | C87: NA | D87: npower | E87: NPFRD-1 | F87: DNO connection | G87: Battery | H87: 2020-10-01 | I87: 2020-10-31 | J87: 01.10.20 - 31.10.20 (1 months) | K87: As per FFR framework agreement | L87: 700 | M87: 1900 | N87: 12 | O87: 700 | P87: 1900 | Q87: 12 | R87: 700 | S87: 1900 | T87: 12 | U87: 26 | AC87: 1.6 | AD87: 4 | AE87: 4 | AF87: 1.6 | AG87: 4 | AH87: 1.6 | AI87: 4 | AL87: C | AM87: Mutually exclusive from tender A
A88: 129.084 | B88: Accepted | C88: NA | D88: Peak Gen | E88: PGFFR-4 | F88: DNO connection | G88: DSF: Distributed generation (for export) | H88: 2020-10-01 | I88: 2020-10-31 | J88: 01.10.20 - 31.10.20 (1 months) | K88: As per FFR framework agreement | L88: 700 | M88: 1500 | N88: 8 | O88: 700 | P88: 1500 | Q88: 8 | R88: 700 | S88: 1500 | T88: 8 | U88: 16 | AO88: 20
A89: 129.085 | B89: Accepted | C89: NA | D89: Peak Gen | E89: PGFFR-4 | F89: DNO connection | G89: DSF: Distributed generation (for export) | H89: 2020-10-01 | I89: 2020-10-31 | J89: 01.10.20 - 31.10.20 (1 months) | K89: As per FFR framework agreement | L89: 1500 | M89: 2300 | N89: 8 | O89: 1500 | P89: 2300 | Q89: 8 | R89: 1500 | S89: 2300 | T89: 8 | U89: 16 | AO89: 20
A90: 129.086 | B90: Accepted | C90: NA | D90: Peak Gen | E90: PGFFR-5 | F90: DNO connection | G90: DSF: Distributed generation (for export) | H90: 2020-10-01 | I90: 2020-10-31 | J90: 01.10.20 - 31.10.20 (1 months) | K90: As per FFR framework agreement | L90: 1500 | M90: 2300 | N90: 8 | O90: 1500 | P90: 2300 | Q90: 8 | R90: 1500 | S90: 2300 | T90: 8 | U90: 20 | AO90: 20
A91: =A90+0.001 -> 129.087 | B91: Accepted | C91: NA | D91: Peak Gen | E91: PGFFR-8 | F91: DNO connection | G91: DSF: Distributed generation (for export) | H91: 2020-10-01 | I91: 2020-10-31 | J91: 01.10.20 - 31.10.20 (1 months) | K91: As per FFR framework agreement | L91: 1500 | M91: 2300 | N91: 8 | O91: 1500 | P91: 2300 | Q91: 8 | R91: 1500 | S91: 2300 | T91: 8 | U91: 20 | AO91: 20
A92: 129.088 | B92: Accepted | C92: NA | D92: Peak Gen | E92: PETDAG-1 | F92: DNO connection | G92: DSF: Storage (for export) | H92: 2020-09-30 | I92: 2020-10-31 | J92: 30.09.20 - 31.10.20 (1 months) | K92: As per FFR framework agreement | L92: 2300 | M92: 700 | N92: 8 | O92: 2300 | P92: 700 | Q92: 8 | R92: 2300 | S92: 700 | T92: 8 | U92: 31.95 | AC92: 1.6 | AD92: 4 | AE92: 4 | AF92: 1.6 | AG92: 4 | AH92: 1.6 | AI92: 4
A93: 129.089 | B93: Accepted | C93: NA | D93: Peak Gen | E93: PETDAG-1 | F93: DNO connection | G93: DSF: Storage (for export) | H93: 2020-10-01 | I93: 2020-10-31 | J93: 01.10.20 - 31.10.20 (1 months) | K93: As per FFR framework agreement | L93: 700 | M93: 1500 | N93: 8 | O93: 700 | P93: 1500 | Q93: 8 | R93: 700 | S93: 1500 | T93: 8 | U93: 39.99 | AC93: 1.6 | AD93: 4 | AE93: 4 | AF93: 1.6 | AG93: 4 | AH93: 1.6 | AI93: 4
A94: 129.09 | B94: Accepted | C94: NA | D94: Peak Gen | E94: PETDAG-1 | F94: DNO connection | G94: DSF: Storage (for export) | H94: 2020-10-01 | I94: 2020-10-31 | J94: 01.10.20 - 31.10.20 (1 months) | K94: As per FFR framework agreement | L94: 1500 | M94: 2300 | N94: 8 | O94: 1500 | P94: 2300 | Q94: 8 | R94: 1500 | S94: 2300 | T94: 8 | U94: 39.98 | AC94: 1.6 | AD94: 4 | AE94: 4 | AF94: 1.6 | AG94: 4 | AH94: 1.6 | AI94: 4
A95: 129.091 | B95: Rejected | C95: 1.2 | D95: Peak Gen | E95: PETDAG-2 | F95: DNO connection | G95: DSF: Storage (for export) | H95: 2020-09-30 | I95: 2020-10-31 | J95: 30.09.20 - 31.10.20 (1 months) | K95: As per FFR framework agreement | L95: 2300 | M95: 700 | N95: 8 | O95: 2300 | P95: 700 | Q95: 8 | R95: 2300 | S95: 700 | T95: 8 | U95: 29.99 | AC95: 1.2 | AD95: 3 | AE95: 3 | AF95: 1.2 | AG95: 3 | AH95: 1.2 | AI95: 3
A96: 129.092 | B96: Rejected | C96: 1.2 | D96: Peak Gen | E96: PETDAG-2 | F96: DNO connection | G96: DSF: Storage (for export) | H96: 2020-10-01 | I96: 2020-10-31 | J96: 01.10.20 - 31.10.20 (1 months) | K96: As per FFR framework agreement | L96: 700 | M96: 1500 | N96: 8 | O96: 700 | P96: 1500 | Q96: 8 | R96: 700 | S96: 1500 | T96: 8 | U96: 44.98 | AC96: 1.2 | AD96: 3 | AE96: 3 | AF96: 1.2 | AG96: 3 | AH96: 1.2 | AI96: 3
A97: 129.093 | B97: Accepted | C97: NA | D97: Peak Gen | E97: PETDAG-2 | F97: DNO connection | G97: DSF: Storage (for export) | H97: 2020-10-01 | I97: 2020-10-31 | J97: 01.10.20 - 31.10.20 (1 months) | K97: As per FFR framework agreement | L97: 1500 | M97: 2300 | N97: 8 | O97: 1500 | P97: 2300 | Q97: 8 | R97: 1500 | S97: 2300 | T97: 8 | U97: 45.99 | AC97: 1.2 | AD97: 3 | AE97: 3 | AF97: 1.2 | AG97: 3 | AH97: 1.2 | AI97: 3
A98: 129.094 | B98: Accepted | C98: NA | D98: Peak Gen | E98: PGFFR-6 | F98: DNO connection | G98: DSF: Distributed generation (for export) | H98: 2020-10-01 | I98: 2020-10-31 | J98: 01.10.20 - 31.10.20 (1 months) | K98: As per FFR framework agreement | L98: 1500 | M98: 2300 | N98: 8 | O98: 1500 | P98: 2300 | Q98: 8 | R98: 1500 | S98: 2300 | T98: 8 | U98: 20 | AO98: 20
A99: 129.095 | B99: Accepted | C99: NA | D99: OSSPV001 Limited | E99: OEL1-FFR | F99: DNO connection | G99: Battery | H99: 2020-09-30 | I99: 2020-10-31 | J99: 30.09.20 - 31.10.20 (1 months) | K99: As per FFR framework agreement | L99: 2300 | M99: 700 | N99: 8 | O99: 2300 | P99: 700 | Q99: 8 | R99: 2300 | S99: 700 | T99: 8 | U99: 54 | AC99: 3.6 | AD99: 9 | AE99: 9 | AF99: 3.6 | AG99: 9 | AH99: 3.6 | AI99: 9
A100: 129.096 | B100: Accepted | C100: NA | D100: OSSPV001 Limited | E100: OEL1-FFR | F100: DNO connection | G100: Battery | H100: 2020-10-01 | I100: 2020-10-31 | J100: 01.10.20 - 31.10.20 (1 months) | K100: As per FFR framework agreement | L100: 700 | M100: 1500 | N100: 8 | O100: 700 | P100: 1500 | Q100: 8 | R100: 700 | S100: 1500 | T100: 8 | U100: 59.22 | AC100: 3.6 | AD100: 9 | AE100: 9 | AF100: 3.6 | AG100: 9 | AH100: 3.6 | AI100: 9
A101: 129.097 | B101: Accepted | C101: NA | D101: OSSPV001 Limited | E101: OEL1-FFR | F101: DNO connection | G101: Battery | H101: 2020-10-01 | I101: 2020-10-31 | J101: 01.10.20 - 31.10.20 (1 months) | K101: As per FFR framework agreement | L101: 1500 | M101: 2300 | N101: 8 | O101: 1500 | P101: 2300 | Q101: 8 | R101: 1500 | S101: 2300 | T101: 8 | U101: 59.85 | AC101: 3.6 | AD101: 9 | AE101: 9 | AF101: 3.6 | AG101: 9 | AH101: 3.6 | AI101: 9
A102: 129.098 | B102: Accepted | C102: NA | D102: OSSPV001 Limited | E102: OEL2-FFR | F102: DNO connection | G102: Battery | H102: 2020-09-30 | I102: 2020-10-31 | J102: 30.09.20 - 31.10.20 (1 months) | K102: As per FFR framework agreement | L102: 2300 | M102: 700 | N102: 8 | O102: 2300 | P102: 700 | Q102: 8 | R102: 2300 | S102: 700 | T102: 8 | U102: 60 | AC102: 4 | AD102: 10 | AE102: 10 | AF102: 4 | AG102: 10 | AH102: 4 | AI102: 10
A103: 129.099 | B103: Accepted | C103: NA | D103: OSSPV001 Limited | E103: OEL2-FFR | F103: DNO connection | G103: Battery | H103: 2020-10-01 | I103: 2020-10-31 | J103: 01.10.20 - 31.10.20 (1 months) | K103: As per FFR framework agreement | L103: 700 | M103: 1500 | N103: 8 | O103: 700 | P103: 1500 | Q103: 8 | R103: 700 | S103: 1500 | T103: 8 | U103: 65.8 | AC103: 4 | AD103: 10 | AE103: 10 | AF103: 4 | AG103: 10 | AH103: 4 | AI103: 10
A104: 129.1 | B104: Accepted | C104: NA | D104: OSSPV001 Limited | E104: OEL2-FFR | F104: DNO connection | G104: Battery | H104: 2020-10-01 | I104: 2020-10-31 | J104: 01.10.20 - 31.10.20 (1 months) | K104: As per FFR framework agreement | L104: 1500 | M104: 2300 | N104: 8 | O104: 1500 | P104: 2300 | Q104: 8 | R104: 1500 | S104: 2300 | T104: 8 | U104: 66.5 | AC104: 4 | AD104: 10 | AE104: 10 | AF104: 4 | AG104: 10 | AH104: 4 | AI104: 10
A105: 129.101 | B105: Accepted | C105: NA | D105: Social Energy Limited | E105: SOC1-FFR | F105: DNO connection | G105: DSF: Storage (onsite) | H105: 2020-09-30 | I105: 2020-10-31 | J105: 30.09.20 - 31.10.20 (1 months) | K105: As per FFR framework agreement | L105: 2300 | M105: 700 | N105: =IF(L105>M105, (2400-L105+M105)/100, IF(AND(L105="",M105="",L105=M105), "", IF(L105=M105,24,(M105-L105)/100))) -> 8 | O105: 2300 | P105: 700 | Q105: =IF(O105>P105, (2400-O105+P105)/100, IF(AND(O105="",P105="",O105=P105), "", IF(O105=P105,24,(P105-O105)/100))) -> 8 | R105: 2300 | S105: 700 | T105: =IF(R105>S105, (2400-R105+S105)/100, IF(AND(R105="",S105="",R105=S105), "", IF(R105=S105,24,(S105-R105)/100))) -> 8 | U105: 5.37 | AC105: 0.4 | AD105: 1 | AE105: 1 | AF105: 0.4 | AG105: 1 | AH105: 0.4 | AI105: 1 | AP105: H for only 30min
A106: 129.102 | B106: Accepted | C106: NA | D106: Social Energy Limited | E106: SOC1-FFR | F106: DNO connection | G106: DSF: Storage (onsite) | H106: 2020-10-01 | I106: 2020-10-31 | J106: 01.10.20 - 31.10.20 (1 months) | K106: As per FFR framework agreement | L106: 700 | M106: 1500 | N106: =IF(L106>M106, (2400-L106+M106)/100, IF(AND(L106="",M106="",L106=M106), "", IF(L106=M106,24,(M106-L106)/100))) -> 8 | O106: 700 | P106: 1500 | Q106: =IF(O106>P106, (2400-O106+P106)/100, IF(AND(O106="",P106="",O106=P106), "", IF(O106=P106,24,(P106-O106)/100))) -> 8 | R106: 700 | S106: 1500 | T106: =IF(R106>S106, (2400-R106+S106)/100, IF(AND(R106="",S106="",R106=S106), "", IF(R106=S106,24,(S106-R106)/100))) -> 8 | U106: 6 | AC106: 0.4 | AD106: 1 | AE106: 1 | AF106: 0.4 | AG106: 1 | AH106: 0.4 | AI106: 1 | AP106: H for only 30min
A107: 129.103 | B107: Accepted | C107: NA | D107: Social Energy Limited | E107: SOC2-FFR | F107: DNO connection | G107: DSF: Storage (onsite) | H107: 2020-09-30 | I107: 2020-10-31 | J107: 30.09.20 - 31.10.20 (1 months) | K107: As per FFR framework agreement | L107: 2300 | M107: 700 | N107: 8 | O107: 2300 | P107: 700 | Q107: 8 | R107: 2300 | S107: 700 | T107: 8 | U107: 5.35 | AC107: 0.4 | AD107: 1 | AE107: 1 | AF107: 0.4 | AG107: 1 | AH107: 0.4 | AI107: 1 | AP107: H for only 30min
A108: 129.104 | B108: Accepted | C108: NA | D108: Social Energy Limited | E108: SOC2-FFR | F108: DNO connection | G108: DSF: Storage (onsite) | H108: 2020-10-01 | I108: 2020-10-31 | J108: 01.10.20 - 31.10.20 (1 months) | K108: As per FFR framework agreement | L108: 700 | M108: 1500 | N108: 8 | O108: 700 | P108: 1500 | Q108: 8 | R108: 700 | S108: 1500 | T108: 8 | U108: 6.03 | AC108: 0.4 | AD108: 1 | AE108: 1 | AF108: 0.4 | AG108: 1 | AH108: 0.4 | AI108: 1 | AP108: H for only 30min
A109: 129.105 | B109: Accepted | C109: NA | D109: Social Energy Limited | E109: SOC3-FFR | F109: DNO connection | G109: DSF: Storage (onsite) | H109: 2020-09-30 | I109: 2020-10-31 | J109: 30.09.20 - 31.10.20 (1 months) | K109: As per FFR framework agreement | L109: 2300 | M109: 700 | N109: 8 | O109: 2300 | P109: 700 | Q109: 8 | R109: 2300 | S109: 700 | T109: 8 | U109: 5.32 | AC109: 0.4 | AD109: 1 | AE109: 1 | AF109: 0.4 | AG109: 1 | AH109: 0.4 | AI109: 1 | AP109: H for only 30min
A110: 129.106 | B110: Accepted | C110: NA | D110: Social Energy Limited | E110: SOC3-FFR | F110: DNO connection | G110: DSF: Storage (onsite) | H110: 2020-10-01 | I110: 2020-10-31 | J110: 01.10.20 - 31.10.20 (1 months) | K110: As per FFR framework agreement | L110: 700 | M110: 1500 | N110: 8 | O110: 700 | P110: 1500 | Q110: 8 | R110: 700 | S110: 1500 | T110: 8 | U110: 6.06 | AC110: 0.4 | AD110: 1 | AE110: 1 | AF110: 0.4 | AG110: 1 | AH110: 0.4 | AI110: 1 | AP110: H for only 30min
A111: 129.107 | B111: Accepted | C111: NA | D111: Social Energy Limited | E111: SOC4-FFR | F111: DNO connection | G111: DSF: Storage (onsite) | H111: 2020-09-30 | I111: 2020-10-31 | J111: 30.09.20 - 31.10.20 (1 months) | K111: As per FFR framework agreement | L111: 2300 | M111: 700 | N111: 8 | O111: 2300 | P111: 700 | Q111: 8 | R111: 2300 | S111: 700 | T111: 8 | U111: 5.3 | AC111: 0.4 | AD111: 1 | AE111: 1 | AF111: 0.4 | AG111: 1 | AH111: 0.4 | AI111: 1 | AP111: H for only 30min
A112: 129.108 | B112: Accepted | C112: NA | D112: Social Energy Limited | E112: SOC4-FFR | F112: DNO connection | G112: DSF: Storage (onsite) | H112: 2020-10-01 | I112: 2020-10-31 | J112: 01.10.20 - 31.10.20 (1 months) | K112: As per FFR framework agreement | L112: 700 | M112: 1500 | N112: 8 | O112: 700 | P112: 1500 | Q112: 8 | R112: 700 | S112: 1500 | T112: 8 | U112: 6.08 | AC112: 0.4 | AD112: 1 | AE112: 1 | AF112: 0.4 | AG112: 1 | AH112: 0.4 | AI112: 1 | AP112: H for only 30min
A113: 129.109 | B113: Accepted | C113: NA | D113: Social Energy Limited | E113: SOC5-FFR | F113: DNO connection | G113: DSF: Storage (onsite) | H113: 2020-09-30 | I113: 2020-10-31 | J113: 30.09.20 - 31.10.20 (1 months) | K113: As per FFR framework agreement | L113: 2300 | M113: 700 | N113: 8 | O113: 2300 | P113: 700 | Q113: 8 | R113: 2300 | S113: 700 | T113: 8 | U113: 5.27 | AC113: 0.4 | AD113: 1 | AE113: 1 | AF113: 0.4 | AG113: 1 | AH113: 0.4 | AI113: 1 | AP113: H for only 30min
A114: 129.11 | B114: Accepted | C114: NA | D114: Social Energy Limited | E114: SOC5-FFR | F114: DNO connection | G114: DSF: Storage (onsite) | H114: 2020-10-01 | I114: 2020-10-31 | J114: 01.10.20 - 31.10.20 (1 months) | K114: As per FFR framework agreement | L114: 700 | M114: 1500 | N114: 8 | O114: 700 | P114: 1500 | Q114: 8 | R114: 700 | S114: 1500 | T114: 8 | U114: 6.11 | AC114: 0.4 | AD114: 1 | AE114: 1 | AF114: 0.4 | AG114: 1 | AH114: 0.4 | AI114: 1 | AP114: H for only 30min
A115: 129.111 | B115: Accepted | C115: NA | D115: Pelham Storage Limited | E115: PLHM-1 | F115: DNO connection | G115: DSF: Storage (for export) | H115: 2020-09-30 | I115: 2020-10-31 | J115: 30.09.20 - 31.10.20 (1 months) | K115: As per FFR framework agreement | L115: 2300 | M115: 700 | N115: =IF(L115>M115, (2400-L115+M115)/100, IF(AND(L115="",M115="",L115=M115), "", IF(L115=M115,24,(M115-L115)/100))) -> 8 | O115: 2300 | P115: 700 | Q115: =IF(O115>P115, (2400-O115+P115)/100, IF(AND(O115="",P115="",O115=P115), "", IF(O115=P115,24,(P115-O115)/100))) -> 8 | R115: 2300 | S115: 700 | T115: =IF(R115>S115, (2400-R115+S115)/100, IF(AND(R115="",S115="",R115=S115), "", IF(R115=S115,24,(S115-R115)/100))) -> 8 | U115: 227.92 | AC115: 17.6 | AD115: 44 | AE115: 44 | AF115: 17.6 | AG115: 44 | AH115: 17.6 | AI115: 44
A116: 129.112 | B116: Accepted | C116: NA | D116: Pelham Storage Limited | E116: PLHM-1 | F116: DNO connection | G116: DSF: Storage (for export) | H116: 2020-10-01 | I116: 2020-10-31 | J116: 01.10.20 - 31.10.20 (1 months) | K116: As per FFR framework agreement | L116: 700 | M116: 1500 | N116: =IF(L116>M116, (2400-L116+M116)/100, IF(AND(L116="",M116="",L116=M116), "", IF(L116=M116,24,(M116-L116)/100))) -> 8 | O116: 700 | P116: 1500 | Q116: =IF(O116>P116, (2400-O116+P116)/100, IF(AND(O116="",P116="",O116=P116), "", IF(O116=P116,24,(P116-O116)/100))) -> 8 | R116: 700 | S116: 1500 | T116: =IF(R116>S116, (2400-R116+S116)/100, IF(AND(R116="",S116="",R116=S116), "", IF(R116=S116,24,(S116-R116)/100))) -> 8 | U116: 284.64 | AC116: 19.2 | AD116: 48 | AE116: 48 | AF116: 19.2 | AG116: 48 | AH116: 19.2 | AI116: 48
A117: 129.113 | B117: Accepted | C117: NA | D117: Pelham Storage Limited | E117: PLHM-1 | F117: DNO connection | G117: DSF: Storage (for export) | H117: 2020-10-01 | I117: 2020-10-31 | J117: 01.10.20 - 31.10.20 (1 months) | K117: As per FFR framework agreement | L117: 1500 | M117: 2300 | N117: 8 | O117: 1500 | P117: 2300 | Q117: 8 | R117: 1500 | S117: 2300 | T117: 8 | U117: 316.8 | AC117: 19.2 | AD117: 48 | AE117: 48 | AF117: 19.2 | AG117: 48 | AH117: 19.2 | AI117: 48
A118: 129.114 | B118: Accepted | C118: NA | D118: Statkraft Markets GmbH | E118: AG-MSTK01 | F118: DNO Connection | G118: DSF: Storage (for export) | H118: 2020-09-30 | I118: 2020-10-31 | J118: =IFERROR(TEXT(H118,"DD.MM.YY")&" - "&TEXT(I118,"DD.MM.YY")&" ("&DATEDIF(H118,I118+1,"m")&" months)","Tender End Date is Before Start Date") -> 30.09.20 - 31.10.20 (1 months) | K118: As per FFR framework agreement | L118: 2300 | M118: 700 | N118: =IF(L118>M118, (2400-L118+M118)/100, IF(AND(L118="",M118="",L118=M118), "", IF(L118=M118,24,(M118-L118)/100))) -> 8 | O118: 2300 | P118: 700 | Q118: =IF(O118>P118, (2400-O118+P118)/100, IF(AND(O118="",P118="",O118=P118), "", IF(O118=P118,24,(P118-O118)/100))) -> 8 | R118: 2300 | S118: 700 | T118: =IF(R118>S118, (2400-R118+S118)/100, IF(AND(R118="",S118="",R118=S118), "", IF(R118=S118,24,(S118-R118)/100))) -> 8 | U118: 239.7 | AC118: 18.8 | AD118: 47 | AE118: 47 | AF118: 18.8 | AG118: 47 | AH118: 18.8 | AI118: 47 | AL118: A
A119: 129.115 | B119: Accepted | C119: NA | D119: Statkraft Markets GmbH | E119: AG-MSTK01 | F119: DNO Connection | G119: DSF: Storage (for export) | H119: 2020-10-01 | I119: 2020-10-31 | J119: =IFERROR(TEXT(H119,"DD.MM.YY")&" - "&TEXT(I119,"DD.MM.YY")&" ("&DATEDIF(H119,I119+1,"m")&" months)","Tender End Date is Before Start Date") -> 01.10.20 - 31.10.20 (1 months) | K119: As per FFR framework agreement | L119: 700 | M119: 1500 | N119: =IF(L119>M119, (2400-L119+M119)/100, IF(AND(L119="",M119="",L119=M119), "", IF(L119=M119,24,(M119-L119)/100))) -> 8 | O119: 700 | P119: 1500 | Q119: =IF(O119>P119, (2400-O119+P119)/100, IF(AND(O119="",P119="",O119=P119), "", IF(O119=P119,24,(P119-O119)/100))) -> 8 | R119: 700 | S119: 1500 | T119: =IF(R119>S119, (2400-R119+S119)/100, IF(AND(R119="",S119="",R119=S119), "", IF(R119=S119,24,(S119-R119)/100))) -> 8 | U119: 343.1 | AC119: 18.8 | AD119: 47 | AE119: 47 | AF119: 18.8 | AG119: 47 | AH119: 18.8 | AI119: 47 | AL119: A
A120: 129.116 | B120: Accepted | C120: NA | D120: Statkraft Markets GmbH | E120: AG-MSTK01 | F120: DNO Connection | G120: DSF: Storage (for export) | H120: 2020-10-01 | I120: 2020-10-31 | J120: 01.10.20 - 31.10.20 (1 months) | K120: As per FFR framework agreement | L120: 1500 | M120: 2300 | N120: 8 | O120: 1500 | P120: 2300 | Q120: 8 | R120: 1500 | S120: 2300 | T120: 8 | U120: 394.8 | AC120: 18.8 | AD120: 47 | AE120: 47 | AF120: 18.8 | AG120: 47 | AH120: 18.8 | AI120: 47 | AL120: A
A121: 129.117 | B121: Accepted | C121: NA | D121: Statkraft Markets GmbH | E121: SKFT-1 | F121: DNO Connection | G121: DSF: Storage (for export) | H121: 2020-10-01 | I121: 2020-10-31 | J121: 01.10.20 - 31.10.20 (1 months) | K121: As per FFR framework agreement | L121: 700 | M121: 1500 | N121: 8 | O121: 700 | P121: 1500 | Q121: 8 | R121: 700 | S121: 1500 | T121: 8 | U121: 27.85 | AC121: 2 | AD121: 5 | AE121: 5 | AF121: 2 | AG121: 5 | AH121: 2 | AI121: 5
A122: 129.118 | B122: Accepted | C122: NA | D122: Statkraft Markets GmbH | E122: SKFT-1 | F122: DNO Connection | G122: DSF: Storage (for export) | H122: 2020-10-01 | I122: 2020-10-31 | J122: 01.10.20 - 31.10.20 (1 months) | K122: As per FFR framework agreement | L122: 1500 | M122: 2300 | N122: 8 | O122: 1500 | P122: 2300 | Q122: 8 | R122: 1500 | S122: 2300 | T122: 8 | U122: 32.45 | AC122: 2 | AD122: 5 | AE122: 5 | AF122: 2 | AG122: 5 | AH122: 2 | AI122: 5
A123: 129.119 | B123: Rejected | C123: 1.2 | D123: UK Power Reserve | E123: AFFR1 | F123: DNO connection | G123: DSF: Storage (for export) | H123: 2020-09-30 | I123: 2020-10-31 | J123: 30.09.20 - 31.10.20 (1 months) | K123: As per FFR framework agreement | L123: 2300 | M123: 2300 | N123: =IF(L123>M123, (2400-L123+M123)/100, IF(AND(L123="",M123="",L123=M123), "", IF(L123=M123,24,(M123-L123)/100))) -> 24 | O123: 2300 | P123: 2300 | Q123: =IF(O123>P123, (2400-O123+P123)/100, IF(AND(O123="",P123="",O123=P123), "", IF(O123=P123,24,(P123-O123)/100))) -> 24 | R123: 2300 | S123: 2300 | T123: =IF(R123>S123, (2400-R123+S123)/100, IF(AND(R123="",S123="",R123=S123), "", IF(R123=S123,24,(S123-R123)/100))) -> 24 | U123: =21.99*20 -> 439.8 | AC123: 8 | AD123: 20 | AE123: 20 | AF123: 8 | AG123: 20 | AH123: 8 | AI123: 20
A124: 129.12 | B124: Rejected | C124: 1.2 | D124: UK Power Reserve | E124: AFFR2 | F124: DNO connection | G124: DSF: Storage (for export) | H124: 2020-09-30 | I124: 2020-10-31 | J124: 30.09.20 - 31.10.20 (1 months) | K124: As per FFR framework agreement | L124: 2300 | M124: 2300 | N124: =IF(L124>M124, (2400-L124+M124)/100, IF(AND(L124="",M124="",L124=M124), "", IF(L124=M124,24,(M124-L124)/100))) -> 24 | O124: 2300 | P124: 2300 | Q124: =IF(O124>P124, (2400-O124+P124)/100, IF(AND(O124="",P124="",O124=P124), "", IF(O124=P124,24,(P124-O124)/100))) -> 24 | R124: 2300 | S124: 2300 | T124: =IF(R124>S124, (2400-R124+S124)/100, IF(AND(R124="",S124="",R124=S124), "", IF(R124=S124,24,(S124-R124)/100))) -> 24 | U124: =13.5*20 -> 270 | AC124: 8 | AD124: 20 | AE124: 20 | AF124: 8 | AG124: 20 | AH124: 8 | AI124: 20
A125: 129.121 | B125: Rejected | C125: 1.2 | D125: UK Power Reserve | E125: AFFR3 | F125: DNO connection | G125: DSF: Storage (for export) | H125: 2020-09-30 | I125: 2020-10-31 | J125: 30.09.20 - 31.10.20 (1 months) | K125: As per FFR framework agreement | L125: 2300 | M125: 700 | N125: 8 | O125: 2300 | P125: 700 | Q125: 8 | R125: 2300 | S125: 700 | T125: 8 | U125: =8.27*20 -> 165.4 | AC125: 8 | AD125: 20 | AE125: 20 | AF125: 8 | AG125: 20 | AH125: 8 | AI125: 20
A126: 129.122 | B126: Accepted | C126: NA | D126: UK Power Reserve | E126: AFFR3 | F126: DNO connection | G126: DSF: Storage (for export) | H126: 2020-10-01 | I126: 2020-10-31 | J126: 01.10.20 - 31.10.20 (1 months) | K126: As per FFR framework agreement | L126: 700 | M126: 1500 | N126: 8 | O126: 700 | P126: 1500 | Q126: 8 | R126: 700 | S126: 1500 | T126: 8 | U126: =9.96*20 -> 199.2 | AC126: 8 | AD126: 20 | AE126: 20 | AF126: 8 | AG126: 20 | AH126: 8 | AI126: 20
A127: 129.123 | B127: Rejected | C127: 1.2 | D127: UK Power Reserve | E127: AFFR3 | F127: DNO connection | G127: DSF: Storage (for export) | H127: 2020-10-01 | I127: 2020-10-31 | J127: 01.10.20 - 31.10.20 (1 months) | K127: As per FFR framework agreement | L127: 1500 | M127: 2300 | N127: 8 | O127: 1500 | P127: 2300 | Q127: 8 | R127: 1500 | S127: 2300 | T127: 8 | U127: =16.95*20 -> 339 | AC127: 8 | AD127: 20 | AE127: 20 | AF127: 8 | AG127: 20 | AH127: 8 | AI127: 20
A128: 129.124 | B128: Accepted | C128: NA | D128: Upside Energy | E128: UPEN-2 | F128: DNO connection | G128: DSF: Storage (onsite) | H128: 2020-09-30 | I128: 2020-10-31 | J128: 30.09.20 - 31.10.20 (1 months) | K128: as per FFR framework agreement | L128: 2300 | M128: 700 | N128: =IF(L128>M128, (2400-L128+M128)/100, IF(AND(L128="",M128="",L128=M128), "", IF(L128=M128,24,(M128-L128)/100))) -> 8 | O128: 2300 | P128: 700 | Q128: =IF(O128>P128, (2400-O128+P128)/100, IF(AND(O128="",P128="",O128=P128), "", IF(O128=P128,24,(P128-O128)/100))) -> 8 | R128: 2300 | S128: 700 | T128: =IF(R128>S128, (2400-R128+S128)/100, IF(AND(R128="",S128="",R128=S128), "", IF(R128=S128,24,(S128-R128)/100))) -> 8 | U128: 5.6 | AC128: 0.4 | AD128: 1 | AE128: 1 | AF128: 0.4 | AG128: 1 | AH128: 0.4 | AI128: 1
A129: 129.125 | B129: Accepted | C129: NA | D129: Upside Energy | E129: UPEN-2 | F129: DNO connection | G129: DSF: Storage (onsite) | H129: 2020-10-01 | I129: 2020-10-31 | J129: 01.10.20 - 31.10.20 (1 months) | K129: as per FFR framework agreement | L129: 700 | M129: 1100 | N129: =IF(L129>M129, (2400-L129+M129)/100, IF(AND(L129="",M129="",L129=M129), "", IF(L129=M129,24,(M129-L129)/100))) -> 4 | O129: 700 | P129: 1100 | Q129: =IF(O129>P129, (2400-O129+P129)/100, IF(AND(O129="",P129="",O129=P129), "", IF(O129=P129,24,(P129-O129)/100))) -> 4 | R129: 700 | S129: 1100 | T129: =IF(R129>S129, (2400-R129+S129)/100, IF(AND(R129="",S129="",R129=S129), "", IF(R129=S129,24,(S129-R129)/100))) -> 4 | U129: 5.7 | AC129: 0.4 | AD129: 1 | AE129: 1 | AF129: 0.4 | AG129: 1 | AH129: 0.4 | AI129: 1
A130: 129.126 | B130: Rejected | C130: 1.2 | D130: Limejump Energy Ltd | E130: AG-BLIM02 | F130: TO connection | G130: DSF: Storage (for export) | H130: 2020-09-30 | I130: 2020-10-31 | J130: =IFERROR(TEXT(H130,"DD.MM.YY")&" - "&TEXT(I130,"DD.MM.YY")&" ("&DATEDIF(H130,I130+1,"m")&" months)","Tender End Date is Before Start Date") -> 30.09.20 - 31.10.20 (1 months) | K130: As per FFR framework agreement | L130: 2300 | M130: 700 | N130: 8 | O130: 2300 | P130: 700 | Q130: 8 | R130: 2300 | S130: 700 | T130: 8 | U130: 104.5 | AC130: 4.4 | AD130: 11 | AE130: 11 | AF130: 4.4 | AG130: 11 | AH130: 4.4 | AI130: 11 | AP130: H for 30 minutes only
A131: 129.127 | B131: Rejected | C131: 1.1 | D131: Limejump Energy Ltd | E131: AG-BLIM02 | F131: TO connection | G131: DSF: Storage (for export) | H131: 2020-10-01 | I131: 2020-10-31 | J131: 01.10.20 - 31.10.20 (1 months) | K131: As per FFR framework agreement | L131: 700 | M131: 1500 | N131: 8 | O131: 700 | P131: 1500 | Q131: 8 | R131: 700 | S131: 1500 | T131: 8 | U131: 105 | AC131: 4 | AD131: 10 | AE131: 10 | AF131: 4 | AG131: 10 | AH131: 4 | AI131: 10 | AP131: H for 30 minutes only
A132: 129.128 | B132: Accepted | C132: NA | D132: Limejump Energy Ltd | E132: AG-BLIM02 | F132: TO connection | G132: DSF: Storage (for export) | H132: 2020-10-01 | I132: 2020-10-31 | J132: 01.10.20 - 31.10.20 (1 months) | K132: As per FFR framework agreement | L132: 1500 | M132: 2300 | N132: 8 | O132: 1500 | P132: 2300 | Q132: 8 | R132: 1500 | S132: 2300 | T132: 8 | U132: 115 | AC132: 4 | AD132: 10 | AE132: 10 | AF132: 4 | AG132: 10 | AH132: 4 | AI132: 10 | AP132: H for 30 minutes only
A133: 129.129 | B133: Rejected | C133: 1.2 | D133: Limejump Energy Ltd | E133: AG-FLIM01 | F133: TO connection | G133: DSF: Storage (for export) | H133: 2020-09-30 | I133: 2020-10-31 | J133: 30.09.20 - 31.10.20 (1 months) | K133: As per FFR framework agreement | L133: 2300 | M133: 700 | N133: 8 | O133: 2300 | P133: 700 | Q133: 8 | R133: 2300 | S133: 700 | T133: 8 | U133: 66.78 | AC133: 2.8 | AD133: 7 | AE133: 7 | AF133: 2.8 | AG133: 7 | AH133: 2.8 | AI133: 7 | AP133: H for 30 minutes only
A134: 129.13 | B134: Rejected | C134: 1.2 | D134: Limejump Energy Ltd | E134: AG-FLIM01 | F134: TO connection | G134: DSF: Storage (for export) | H134: 2020-10-01 | I134: 2020-10-31 | J134: 01.10.20 - 31.10.20 (1 months) | K134: As per FFR framework agreement | L134: 700 | M134: 1500 | N134: 8 | O134: 700 | P134: 1500 | Q134: 8 | R134: 700 | S134: 1500 | T134: 8 | U134: 73.78 | AC134: 2.8 | AD134: 7 | AE134: 7 | AF134: 2.8 | AG134: 7 | AH134: 2.8 | AI134: 7 | AP134: H for 30 minutes only
A135: 129.131 | B135: Accepted | C135: NA | D135: Limejump Energy Ltd | E135: AG-FLIM01 | F135: TO connection | G135: DSF: Storage (for export) | H135: 2020-10-01 | I135: 2020-10-31 | J135: 01.10.20 - 31.10.20 (1 months) | K135: As per FFR framework agreement | L135: 1500 | M135: 2300 | N135: 8 | O135: 1500 | P135: 2300 | Q135: 8 | R135: 1500 | S135: 2300 | T135: 8 | U135: 80.78 | AC135: 2.8 | AD135: 7 | AE135: 7 | AF135: 2.8 | AG135: 7 | AH135: 2.8 | AI135: 7 | AP135: H for 30 minutes only
A136: 129.132 | B136: Accepted | C136: NA | D136: Limejump Energy Ltd | E136: AG-GLIM01 | F136: TO connection | G136: DSF: Storage (for export) | H136: 2020-09-30 | I136: 2020-10-31 | J136: 30.09.20 - 31.10.20 (1 months) | K136: As per FFR framework agreement | L136: 2300 | M136: 700 | N136: 8 | O136: 2300 | P136: 700 | Q136: 8 | R136: 2300 | S136: 700 | T136: 8 | U136: 19.02 | AC136: 0.8 | AD136: 2 | AE136: 2 | AF136: 0.8 | AG136: 2 | AH136: 0.8 | AI136: 2 | AP136: H for 30 minutes only
A137: 129.133 | B137: Accepted | C137: NA | D137: Limejump Energy Ltd | E137: AG-GLIM01 | F137: TO connection | G137: DSF: Storage (for export) | H137: 2020-10-01 | I137: 2020-10-31 | J137: 01.10.20 - 31.10.20 (1 months) | K137: As per FFR framework agreement | L137: 700 | M137: 1500 | N137: 8 | O137: 700 | P137: 1500 | Q137: 8 | R137: 700 | S137: 1500 | T137: 8 | U137: 21.02 | AC137: 0.8 | AD137: 2 | AE137: 2 | AF137: 0.8 | AG137: 2 | AH137: 0.8 | AI137: 2 | AP137: H for 30 minutes only
A138: 129.134 | B138: Accepted | C138: NA | D138: Limejump Energy Ltd | E138: AG-GLIM01 | F138: TO connection | G138: DSF: Storage (for export) | H138: 2020-10-01 | I138: 2020-10-31 | J138: 01.10.20 - 31.10.20 (1 months) | K138: As per FFR framework agreement | L138: 1500 | M138: 2300 | N138: 8 | O138: 1500 | P138: 2300 | Q138: 8 | R138: 1500 | S138: 2300 | T138: 8 | U138: 23.02 | AC138: 0.8 | AD138: 2 | AE138: 2 | AF138: 0.8 | AG138: 2 | AH138: 0.8 | AI138: 2 | AP138: H for 30 minutes only
A139: 129.135 | B139: Accepted | C139: NA | D139: Limejump Energy Ltd | E139: AG-HLIM01 | F139: TO connection | G139: DSF: Storage (for export) | H139: 2020-09-30 | I139: 2020-10-31 | J139: 30.09.20 - 31.10.20 (1 months) | K139: As per FFR framework agreement | L139: 2300 | M139: 700 | N139: 8 | O139: 2300 | P139: 700 | Q139: 8 | R139: 2300 | S139: 700 | T139: 8 | U139: 28.56 | AC139: 1.2 | AD139: 3 | AE139: 3 | AF139: 1.2 | AG139: 3 | AH139: 1.2 | AI139: 3 | AP139: H for 30 minutes only
A140: 129.136 | B140: Accepted | C140: NA | D140: Limejump Energy Ltd | E140: AG-HLIM01 | F140: TO connection | G140: DSF: Storage (for export) | H140: 2020-10-01 | I140: 2020-10-31 | J140: 01.10.20 - 31.10.20 (1 months) | K140: As per FFR framework agreement | L140: 700 | M140: 1500 | N140: 8 | O140: 700 | P140: 1500 | Q140: 8 | R140: 700 | S140: 1500 | T140: 8 | U140: 31.56 | AC140: 1.2 | AD140: 3 | AE140: 3 | AF140: 1.2 | AG140: 3 | AH140: 1.2 | AI140: 3 | AP140: H for 30 minutes only
A141: =A140+0.001 -> 129.137 | B141: Accepted | C141: NA | D141: Limejump Energy Ltd | E141: AG-HLIM01 | F141: TO connection | G141: DSF: Storage (for export) | H141: 2020-10-01 | I141: 2020-10-31 | J141: 01.10.20 - 31.10.20 (1 months) | K141: As per FFR framework agreement | L141: 1500 | M141: 2300 | N141: 8 | O141: 1500 | P141: 2300 | Q141: 8 | R141: 1500 | S141: 2300 | T141: 8 | U141: 34.56 | AC141: 1.2 | AD141: 3 | AE141: 3 | AF141: 1.2 | AG141: 3 | AH141: 1.2 | AI141: 3 | AP141: H for 30 minutes only
A142: 129.138 | B142: Rejected | C142: 1.2 | D142: Limejump Energy Ltd | E142: AG-ELIM02 | F142: TO connection | G142: DSF: Storage (for export) | H142: 2020-09-30 | I142: 2020-10-31 | J142: 30.09.20 - 31.10.20 (1 months) | K142: As per FFR framework agreement | L142: 2300 | M142: 700 | N142: 8 | O142: 2300 | P142: 700 | Q142: 8 | R142: 2300 | S142: 700 | T142: 8 | U142: 28.59 | AC142: 1.2 | AD142: 3 | AE142: 3 | AF142: 1.2 | AG142: 3 | AH142: 1.2 | AI142: 3 | AP142: H for 30 minutes only
A143: 129.139 | B143: Rejected | C143: 1.2 | D143: Limejump Energy Ltd | E143: AG-ELIM02 | F143: TO connection | G143: DSF: Storage (for export) | H143: 2020-10-01 | I143: 2020-10-31 | J143: 01.10.20 - 31.10.20 (1 months) | K143: As per FFR framework agreement | L143: 700 | M143: 1500 | N143: 8 | O143: 700 | P143: 1500 | Q143: 8 | R143: 700 | S143: 1500 | T143: 8 | U143: 31.59 | AC143: 1.2 | AD143: 3 | AE143: 3 | AF143: 1.2 | AG143: 3 | AH143: 1.2 | AI143: 3 | AP143: H for 30 minutes only
A144: 129.14 | B144: Accepted | C144: NA | D144: Limejump Energy Ltd | E144: AG-ELIM02 | F144: TO connection | G144: DSF: Storage (for export) | H144: 2020-10-01 | I144: 2020-10-31 | J144: 01.10.20 - 31.10.20 (1 months) | K144: As per FFR framework agreement | L144: 1500 | M144: 2300 | N144: 8 | O144: 1500 | P144: 2300 | Q144: 8 | R144: 1500 | S144: 2300 | T144: 8 | U144: 34.59 | AC144: 1.2 | AD144: 3 | AE144: 3 | AF144: 1.2 | AG144: 3 | AH144: 1.2 | AI144: 3 | AP144: H for 30 minutes only
A145: 129.141 | B145: Accepted | C145: NA | D145: Limejump Ltd | E145: LJDYN-2 | F145: DNO connection | G145: DSF: Storage (for export) | H145: 2020-09-30 | I145: 2020-10-31 | J145: 30.09.20 - 31.10.20 (1 months) | K145: As per FFR framework agreement | L145: 2300 | M145: 700 | N145: 8 | O145: 2300 | P145: 700 | Q145: 8 | R145: 2300 | S145: 700 | T145: 8 | U145: 19.1 | AC145: 0.8 | AD145: 2 | AE145: 2 | AF145: 0.8 | AG145: 2 | AH145: 0.8 | AI145: 2 | AP145: H for 30 minutes only
A146: 129.142 | B146: Accepted | C146: NA | D146: Limejump Ltd | E146: LJDYN-2 | F146: DNO connection | G146: DSF: Storage (for export) | H146: 2020-10-01 | I146: 2020-10-31 | J146: 01.10.20 - 31.10.20 (1 months) | K146: As per FFR framework agreement | L146: 700 | M146: 1500 | N146: 8 | O146: 700 | P146: 1500 | Q146: 8 | R146: 700 | S146: 1500 | T146: 8 | U146: 21.1 | AC146: 0.8 | AD146: 2 | AE146: 2 | AF146: 0.8 | AG146: 2 | AH146: 0.8 | AI146: 2 | AP146: H for 30 minutes only
A147: 129.143 | B147: Accepted | C147: NA | D147: Limejump Ltd | E147: LJDYN-2 | F147: DNO connection | G147: DSF: Storage (for export) | H147: 2020-10-01 | I147: 2020-10-31 | J147: 01.10.20 - 31.10.20 (1 months) | K147: As per FFR framework agreement | L147: 1500 | M147: 2300 | N147: 8 | O147: 1500 | P147: 2300 | Q147: 8 | R147: 1500 | S147: 2300 | T147: 8 | U147: 23.1 | AC147: 0.8 | AD147: 2 | AE147: 2 | AF147: 0.8 | AG147: 2 | AH147: 0.8 | AI147: 2 | AP147: H for 30 minutes only
A148: 129.144 | B148: Accepted | C148: NA | D148: Limejump Energy Ltd | E148: AG-BLIM04 | F148: TO connection | G148: DSF: Storage (for export) | H148: 2020-09-30 | I148: 2020-10-31 | J148: 30.09.20 - 31.10.20 (1 months) | K148: As per FFR framework agreement | L148: 2300 | M148: 700 | N148: 8 | O148: 2300 | P148: 700 | Q148: 8 | R148: 2300 | S148: 700 | T148: 8 | U148: 47.61 | AC148: 3.6 | AD148: 9 | AE148: 9 | AF148: 3.6 | AG148: 9 | AH148: 3.6 | AI148: 9 | AP148: H for 30 minutes only
A149: 129.145 | B149: Accepted | C149: NA | D149: Limejump Energy Ltd | E149: AG-BLIM04 | F149: TO connection | G149: DSF: Storage (for export) | H149: 2020-10-01 | I149: 2020-10-31 | J149: 01.10.20 - 31.10.20 (1 months) | K149: As per FFR framework agreement | L149: 700 | M149: 1500 | N149: 8 | O149: 700 | P149: 1500 | Q149: 8 | R149: 700 | S149: 1500 | T149: 8 | U149: 57.51 | AC149: 3.6 | AD149: 9 | AE149: 9 | AF149: 3.6 | AG149: 9 | AH149: 3.6 | AI149: 9 | AP149: H for 30 minutes only
A150: 129.146 | B150: Accepted | C150: NA | D150: Limejump Energy Ltd | E150: AG-BLIM04 | F150: TO connection | G150: DSF: Storage (for export) | H150: 2020-10-01 | I150: 2020-10-31 | J150: 01.10.20 - 31.10.20 (1 months) | K150: As per FFR framework agreement | L150: 1500 | M150: 2300 | N150: 8 | O150: 1500 | P150: 2300 | Q150: 8 | R150: 1500 | S150: 2300 | T150: 8 | U150: 63.36 | AC150: 3.6 | AD150: 9 | AE150: 9 | AF150: 3.6 | AG150: 9 | AH150: 3.6 | AI150: 9 | AP150: H for 30 minutes only
A151: 129.147 | B151: Accepted | C151: NA | D151: Limejump Energy Ltd | E151: AG-ELIM03 | F151: TO connection | G151: DSF: Storage (for export) | H151: 2020-09-30 | I151: 2020-10-31 | J151: 30.09.20 - 31.10.20 (1 months) | K151: As per FFR framework agreement | L151: 2300 | M151: 700 | N151: 8 | O151: 2300 | P151: 700 | Q151: 8 | R151: 2300 | S151: 700 | T151: 8 | U151: 100.51 | AC151: 7.6 | AD151: 19 | AE151: 19 | AF151: 7.6 | AG151: 19 | AH151: 7.6 | AI151: 19 | AP151: H for 30 minutes only
A152: 129.148 | B152: Accepted | C152: NA | D152: Limejump Energy Ltd | E152: AG-ELIM03 | F152: TO connection | G152: DSF: Storage (for export) | H152: 2020-10-01 | I152: 2020-10-31 | J152: 01.10.20 - 31.10.20 (1 months) | K152: As per FFR framework agreement | L152: 700 | M152: 1500 | N152: 8 | O152: 700 | P152: 1500 | Q152: 8 | R152: 700 | S152: 1500 | T152: 8 | U152: 121.41 | AC152: 7.6 | AD152: 19 | AE152: 19 | AF152: 7.6 | AG152: 19 | AH152: 7.6 | AI152: 19 | AP152: H for 30 minutes only
A153: 129.149 | B153: Accepted | C153: NA | D153: Limejump Energy Ltd | E153: AG-ELIM03 | F153: TO connection | G153: DSF: Storage (for export) | H153: 2020-10-01 | I153: 2020-10-31 | J153: 01.10.20 - 31.10.20 (1 months) | K153: As per FFR framework agreement | L153: 1500 | M153: 2300 | N153: 8 | O153: 1500 | P153: 2300 | Q153: 8 | R153: 1500 | S153: 2300 | T153: 8 | U153: 133.76 | AC153: 7.6 | AD153: 19 | AE153: 19 | AF153: 7.6 | AG153: 19 | AH153: 7.6 | AI153: 19 | AP153: H for 30 minutes only
A154: 129.15 | B154: Accepted | C154: NA | D154: Limejump Ltd | E154: LJDYQ-1 | F154: DNO connection | G154: DSF: Storage (for export) | H154: 2020-09-30 | I154: 2020-10-31 | J154: 30.09.20 - 31.10.20 (1 months) | K154: As per FFR framework agreement | L154: 2300 | M154: 700 | N154: 8 | O154: 2300 | P154: 700 | Q154: 8 | R154: 2300 | S154: 700 | T154: 8 | U154: 10.58 | AC154: 0.8 | AD154: 2 | AE154: 2 | AF154: 0.8 | AG154: 2 | AH154: 0.8 | AI154: 2 | AP154: H for 30 minutes only
A155: 129.151 | B155: Accepted | C155: NA | D155: Limejump Ltd | E155: LJDYQ-1 | F155: DNO connection | G155: DSF: Storage (for export) | H155: 2020-10-01 | I155: 2020-10-31 | J155: 01.10.20 - 31.10.20 (1 months) | K155: As per FFR framework agreement | L155: 700 | M155: 1500 | N155: 8 | O155: 700 | P155: 1500 | Q155: 8 | R155: 700 | S155: 1500 | T155: 8 | U155: 12.78 | AC155: 0.8 | AD155: 2 | AE155: 2 | AF155: 0.8 | AG155: 2 | AH155: 0.8 | AI155: 2 | AP155: H for 30 minutes only
A156: 129.152 | B156: Accepted | C156: NA | D156: Limejump Ltd | E156: LJDYQ-1 | F156: DNO connection | G156: DSF: Storage (for export) | H156: 2020-10-01 | I156: 2020-10-31 | J156: 01.10.20 - 31.10.20 (1 months) | K156: As per FFR framework agreement | L156: 1500 | M156: 2300 | N156: 8 | O156: 1500 | P156: 2300 | Q156: 8 | R156: 1500 | S156: 2300 | T156: 8 | U156: 14.08 | AC156: 0.8 | AD156: 2 | AE156: 2 | AF156: 0.8 | AG156: 2 | AH156: 0.8 | AI156: 2 | AP156: H for 30 minutes only
A157: 129.153 | B157: Rejected | C157: 4 | D157: Limejump Ltd | E157: LJDYP-2 | F157: DNO connection | G157: DSF: Storage (for export) | H157: 2020-10-01 | I157: 2020-10-31 | J157: 01.10.20 - 31.10.20 (1 months) | K157: As per FFR framework agreement | L157: 700 | M157: 2300 | N157: 16 | O157: 700 | P157: 2300 | Q157: 16 | R157: 700 | S157: 2300 | T157: 16 | U157: 124.8 | AC157: 8 | AD157: 20 | AE157: 20 | AF157: 8 | AG157: 20 | AH157: 8 | AI157: 20 | AL157: A | AM157: Cannot be accepted with B or C | AP157: H for 30 minutes only
A158: 129.154 | B158: Accepted | C158: NA | D158: Limejump Ltd | E158: LJDYP-2 | F158: DNO connection | G158: DSF: Storage (for export) | H158: 2020-10-01 | I158: 2020-10-31 | J158: 01.10.20 - 31.10.20 (1 months) | K158: As per FFR framework agreement | L158: 700 | M158: 1500 | N158: 8 | O158: 700 | P158: 1500 | Q158: 8 | R158: 700 | S158: 1500 | T158: 8 | U158: 113.8 | AC158: 8 | AD158: 20 | AE158: 20 | AF158: 8 | AG158: 20 | AH158: 8 | AI158: 20 | AL158: B | AM158: Cannot be accepted with A | AP158: H for 30 minutes only
A159: 129.155 | B159: Accepted | C159: NA | D159: Limejump Ltd | E159: LJDYP-2 | F159: DNO connection | G159: DSF: Storage (for export) | H159: 2020-10-01 | I159: 2020-10-31 | J159: 01.10.20 - 31.10.20 (1 months) | K159: As per FFR framework agreement | L159: 1500 | M159: 2300 | N159: 8 | O159: 1500 | P159: 2300 | Q159: 8 | R159: 1500 | S159: 2300 | T159: 8 | U159: 131.6 | AC159: 8 | AD159: 20 | AE159: 20 | AF159: 8 | AG159: 20 | AH159: 8 | AI159: 20 | AL159: C | AM159: Cannot be accepted with A | AP159: H for 30 minutes only
A160: 129.156 | B160: Rejected | C160: 4 | D160: Limejump Ltd | E160: LJDYP-4 | F160: DNO connection | G160: DSF: Storage (for export) | H160: 2020-10-01 | I160: 2020-10-31 | J160: 01.10.20 - 31.10.20 (1 months) | K160: As per FFR framework agreement | L160: 700 | M160: 2300 | N160: 16 | O160: 700 | P160: 2300 | Q160: 16 | R160: 700 | S160: 2300 | T160: 16 | U160: 20.19 | AC160: 1.2 | AD160: 3 | AE160: 3 | AF160: 1.2 | AG160: 3 | AH160: 1.2 | AI160: 3 | AL160: D | AM160: Cannot be accepted with E or F | AP160: H for 30 minutes only
A161: 129.157 | B161: Accepted | C161: NA | D161: Limejump Ltd | E161: LJDYP-4 | F161: DNO connection | G161: DSF: Storage (for export) | H161: 2020-10-01 | I161: 2020-10-31 | J161: 01.10.20 - 31.10.20 (1 months) | K161: As per FFR framework agreement | L161: 700 | M161: 1500 | N161: 8 | O161: 700 | P161: 1500 | Q161: 8 | R161: 700 | S161: 1500 | T161: 8 | U161: 18.9 | AC161: 1.2 | AD161: 3 | AE161: 3 | AF161: 1.2 | AG161: 3 | AH161: 1.2 | AI161: 3 | AL161: E | AM161: Cannot be accepted with D | AP161: H for 30 minutes only
A162: 129.158 | B162: Accepted | C162: NA | D162: Limejump Ltd | E162: LJDYP-4 | F162: DNO connection | G162: DSF: Storage (for export) | H162: 2020-10-01 | I162: 2020-10-31 | J162: 01.10.20 - 31.10.20 (1 months) | K162: As per FFR framework agreement | L162: 1500 | M162: 2300 | N162: 8 | O162: 1500 | P162: 2300 | Q162: 8 | R162: 1500 | S162: 2300 | T162: 8 | U162: 20.85 | AC162: 1.2 | AD162: 3 | AE162: 3 | AF162: 1.2 | AG162: 3 | AH162: 1.2 | AI162: 3 | AL162: F | AM162: Cannot be accepted with D | AP162: H for 30 minutes only
A164: Rejection Codes | B164: Code | D164: Reason
B165: 1 | C165: Beneficial | E165: 1.1 | F165: Req. satisifed by more beneficial bids
E166: 1.2 | F166: No outstanding req.
E167: 1.3 | F167: Desired procurement volume already met
E168: 1.4 | F168: Formed part of AON. Not collectively beneficial
B169: 2 | C169: Price not beneificial across tendered period
B170: 3 | C170: Does not meet tender prerequisites
B171: 4 | C171: Multiple tenders received for the same unit
B172: 5 | C172: Beyond desired procument volume
